{"text_format":"1","workbook":"xlsx","n_sheets":19,"sheets":["À remplir","Sommaire","Chocolat de Pâques","Mets préparés","Épiceries","Pains","Pr. Laitier","Frais","Eaux","Desserts","Breuvages","Friandises","Noix +Pepper.","Bières+Alcomalts","Pharm+Pr.Ménager","Vins-Spiritueux","Animaux","Quincaillerie","Jouets"],"not_rendered":{"charts":0,"images":0,"macros":1,"external_links":0,"defined_names":0,"comments":0,"pivot_tables":0},"unopened":[],"bounds":{"document_bytes":16777216,"sheet_cells":100000,"rows_first":2000,"rows_last":500,"rows_between":2000,"halvings":0,"cell_chars":16384,"cell_head_chars":4096},"cells_cut":0,"cells_raw":0,"read":"whole","date_system":"1900"}

{"sheet":"À remplir","index":0,"n_rows":32,"n_cols":9,"rows_kept":32,"cut":false,"hidden":false,"merged":[[7,8,7,11],[11,8,12,13],[13,8,14,13],[22,8,27,13],[30,8,35,13],[15,8,18,13],[3,0,3,2],[3,3,3,6],[4,0,4,2],[4,3,4,6],[5,0,5,2],[5,3,5,6],[0,0,0,6],[0,8,0,13],[1,0,1,2],[1,3,1,6],[2,0,2,2],[2,3,2,6],[21,0,24,6],[12,1,12,4],[12,5,12,6],[27,0,28,6],[6,2,7,6],[8,0,8,5],[9,0,9,5]]}
["La Calvette, Magasin Général , 819 727-9559",null,null,null,null,null,null,null,"Consignes d'utilisation"]
["Date : "]
["Nom du client : ",null,null,null,null,null,null,null,"Veuillez suivre les étapes dans l'ordre S.V.P."]
["Téléphone : ",null,null,null,null,null,null,{"$f":"\"1. \"","v":"1. "},"Sauvegarder le fichier de commande sur votre ordinateur."]
["Courriel : ",null,null,null,null,null,null,{"$f":"\"2. \"","v":"2. "},"Remplir les informations clients dans les cellules correspondantes."]
["Description du véhicule : ",null,null,null,null,null,null,{"$f":"\"3. \"","v":"3. "},"Inscrire le nombre d'items dans la colonne 'Qté' dans chaque onglet du fichier."]
[null,null,"En cas de rupture de stock, veuillez indiquer votre choix par un 'X' dans la case correspondante :",null,null,null,null,{"$f":"\"4. \"","v":"4. "},"Faites-nous parvenir votre commande par courriel : "]
[null,null,null,null,null,null,null,null,"calvettecommande@cableamos.com"]
["Remplacer par un produit équivalent, le moins cher possible : "]
[null,null,null,null,null,null,null,null,"Conseils et informations"]
[null,null,null,null,null,null,null,{"$f":"\"1. \"","v":"1. "},"Sauvegardez votre fichier fréquemment."]
["Note : Les taxes et consignes vont s'ajuster à la facturation finale.",null,null,null,null,null,null,{"$f":"\"2. \"","v":"2. "},"Pour accéder aux différents départements, cliquez sur les flèches dans le coin inférieur gauche pour les faire défiler."]
[null,"Estimation totale de votre commande : ",null,null,null,{"$f":"'Chocolat de Pâques'!E7+'Mets préparés'!E68+Épiceries!E293+Pains!E18+'Pr. Laitier'!E26+Frais!E28+Eaux!E17+Desserts!E49+Breuvages!E197+Friandises!E201+'Noix +Pepper.'!E26+'Bières+Alcomalts'!E174+'Pharm+Pr.Ménager'!E87+'Vins-Spiritueux'!E135+Animaux!E13","v":0}]
[null,null,null,null,null,null,null,{"$f":"\"3. \"","v":"3. "},"Pour décontaminer votre épicerie, faites une recherche sur Google et inscrivez : COVID-19 : comment décontaminer son épicerie."]
[]
["Information sur les commandes ",null,null,null,null,null,null,{"$f":"\"4. \"","v":"4. "},"Pour éviter tout problème dans vos commandes, il est fortement recommandé de supprimer votre fichier de commande après réception de celle-ci et de télécharger un nouveau fichier pour chacune de vos commandes."]
["●    3 items identiques maximum par client."]
["●    La vente de tabac à distance est interdite."]
["●     Alcool : Présenter une carte d’identité en personne quand vous passerez."]
[]
["Commentaires pour La Calvette"]
[null,null,null,null,null,null,null,null,"Récupération de votre commande "]
[null,null,null,null,null,null,null,null,"Une fois que vous aurez reçu la confirmation que votre commande est prête, rendez-vous avec votre auto, au deuxième débarcadère sur le côté de la bâtisse de La Calvette. Nous sortirons vous faire payer et ensuite nous déposerons votre commande directement dans votre voiture et vous pourrez repartir. Si nous ne venons pas à votre rencontre, contactez-nous au 819 727-9559.\nSi vous êtes dans l’impossibilité de vous déplacer, contactez-nous."]
[]
[]
[]
["Délai de préparation"]
["Nous demandons 24h ou moins. Dès que votre commande sera prête, nous communiquerons avec vous."]
[]
[null,null,null,null,null,null,null,null,"Modalités de paiement "]
["Jours et heures pour récupérer votre commande :",null,null,null,null,null,null,null,"Une fois sur place avec votre auto, nous vous ferons payer à l’extérieur avec notre machine Interac sans-fil. De notre côté, nous désinfecterons la machine Interac entre chaque client. Mais nous vous suggérons fortement d’utiliser les cartes paiement sans contact Paypass (Interac et cartes de crédit acceptées).\nNote : aucun montant en argent comptant ou chèque ne sera accepté."]
["Du lundi au vendredi, entre 14h et 16h."]

{"sheet":"Sommaire","index":1,"n_rows":19,"n_cols":5,"rows_kept":19,"cut":false,"hidden":true,"merged":[[5,1,5,2],[13,0,16,4],[9,0,9,1],[10,0,10,1],[0,0,0,4],[1,1,1,2],[2,1,2,2],[3,1,3,2],[4,1,4,2]]}
["La Calvette, Magasin Général"]
["Date : "]
["Nom du client : "]
["Teléphone : "]
["Courriel : "]
["Description du véhicule : "]
[]
["Note : Les taxes et consignes vont s'ajuster à la facturation finale."]
[]
["Remplacer par un produit équivalent, le moins cher possible : "]
["Ne pas remplacer : "]
[]
["Commentaires pour La Calvette"]
[]
[]
[]
[]
[]
["Description #1","Description #2","Qté","Prix","Total"]

{"sheet":"Chocolat de Pâques","index":2,"n_rows":7,"n_cols":5,"rows_kept":7,"cut":false,"hidden":false,"merged":[[6,2,6,3]]}
["La Calvette, Magasin Général de Landrienne, 819-727-9559"]
["Le prix inscrit est une indication que nous essayons de respecter, mais nous devons nous ajuster aux fluctuations au jour le jour."]
["Desription #1","Desription #2","Qté","Prix","Total"]
["RÉFRIGÉRÉ"]
["Lapin 250g",null,null,10.99,{"$f":"C5*D5","v":0}]
["Chien 250g",null,null,10.99,{"$f":"C6*D6","v":0}]
[null,null,"Sous total : ",null,{"$f":"SUM(E5:E6)","v":0}]

{"sheet":"Mets préparés","index":3,"n_rows":68,"n_cols":5,"rows_kept":68,"cut":false,"hidden":false,"merged":[[67,2,67,3]]}
["La Calvette, Magasin Général de Landrienne, 819-727-9559"]
["Le prix inscrit est une indication que nous essayons de respecter, mais nous devons nous ajuster aux fluctuations au jour le jour."]
["Desription #1","Desription #2","Qté","Prix","Total"]
["Mets Familials (pour 4)"]
["Doigts de poulet (8x) et riz",null,null,20.99,{"$f":"C5*D5","v":0}]
["Fricassé de bœuf",null,null,20.99,{"$f":"C6*D6","v":0}]
["Gratin de jambon riz et brocoli",null,null,20.99,0]
["Lasagne",null,null,20.99,0]
["Macaroni à la viande",null,null,20.99,0]
["Nouilles chinoises",null,null,20.99,0]
["Pain de viande au Porc et marinara",null,null,20.99,0]
["Pâté chinois",null,null,20.99,0]
["Pâtes béchamel au poulet",null,null,20.99,0]
["Pâtés impériaux au porc (8x) et riz",null,null,20.99,0]
["Pennes soupe à l'oignon",null,null,20.99,0]
["Riz au légumes et poulet",null,null,20.99,0]
["Sauce à spag 875gr",null,null,10.99,0]
["Sauce à spag 425gr",null,null,5.89,0]
[]
["Mets Individuels"]
["Assiette du pêcheur",null,null,7.29,0]
["Bologne rôti",null,null,7.29,0]
["Doigts Poulet",null,null,7.59,0]
["Filet de sole panné",null,null,7.59,0]
["Fricassé au Porc",null,null,7.29,0]
["Gratin de jambon riz et brocoli",null,null,7.29,0]
["Lasagne ",null,null,6.89,0]
["Macaroni à la Viande",null,null,7.09,0]
["Macaroni à la viande gratiné",null,null,7.29,0]
["Nouilles chinoises",null,null,6.89,0]
["Pain viande au Porc",null,null,7.29,0]
["Pâté Chinois",null,null,6.89,0]
["Pâtes Béchamel au Poulet",null,null,7.29,0]
["Pâtés impériaux au porc",null,null,7.59,0]
["Pâtes Marinara au Porc",null,null,7.29,0]
["Pennes soupet à l'oignon",null,null,7.29,0]
["Poulet Hot Chicken",null,null,7.29,0]
["Riz légumes et Poulet",null,null,7.29,0]
["Sauce au Saumon",null,null,7.59,0]
["Saucisses italienne et patates grecs",null,null,8.2899999999999991,0]
["Steak haché",null,null,7.99,0]
[]
["Sandwich - Sous-Marin"]
["Sandwich aux œufs",null,null,4.09,0]
["Sandwich Poulet",null,null,4.3899999999999997,0]
["Sandwich Jambon  ",null,null,4.3899999999999997,0]
["Sandwich jambon fromage",null,null,4.3899999999999997,0]
["Sandwich œuf fromage",null,null,4.3899999999999997,0]
["S-M Costaud",null,null,6.09,0]
["S-M Pizza Bacon",null,null,6.09,0]
["S-M Pizza SANS Bacon",null,null,5.69,0]
["S-M à la Dinde",null,null,6.09,0]
["S-M Jambon et From.Suisse",null,null,6.09,0]
["S-M Poulet Croustillant",null,null,6.09,0]
["S-M Tacos",null,null,6.09,0]
["S-M Poulet Faïtas",null,null,6.09,0]
["S-M Le p'tit Smoked meat",null,null,6.09,0]
["S-M Rosbif",null,null,5.99,0]
["S-M Dinde Bacon et From. Suisse",null,null,6.09,0]
["S-M Coco et From. Suisse",null,null,5.99,0]
["Trio Garnis",null,null,5.29,0]
["Gros Jean",null,null,5.29,0]
["Wrap Doigts Poulet ",null,null,5.99,0]
["Wrap Poulet Bacon",null,null,5.69,0]
["Crudités",null,null,3.89,0]
["Salade au Poulet",null,null,6.29,0]
["Salade Macaroni",null,null,4.3899999999999997,0]
[null,null,"Sous-total :",null,{"$f":"SUM(E5:E67)","v":0}]

{"sheet":"Épiceries","index":4,"n_rows":293,"n_cols":11,"rows_kept":293,"cut":false,"hidden":false,"merged":[[292,2,292,3]]}
["La Calvette, Magasin Général de Landrienne, 819-727-9559"]
["Le prix inscrit est une indication que nous essayons de respecter, mais nous devons nous ajuster aux fluctuations au jour le jour."]
["Desription #1","Desription #2","Qté","Prix","Total",null,null,null,null,null,"Qté"]
["RÉFRIGÉRÉ"]
["Beurre à l'ail",null,null,{"$f":"J5","v":3.09},{"$f":"C5*D5","v":0},1,1.98,{"$f":"G5/F5","v":1.98},{"$f":"1-(H5/J5)","v":0.35922330097087374},3.09,"65897"]
["Beurre Béatrice 454gr",null,null,6.99,0,20,94.96,4.7479999999999993,0.32074391988555095,6.99,68069]
["Creme fouetté aérosol",null,null,6.203125,0,1,3.97,3.97,0.36,{"$f":"H7/0.64","v":6.203125},"65916"]
["Fromage râpé Parmesan 125gr","Kraft",null,6.09,{"$f":"C8*D8","v":0}]
["Fromage tranche 1/2 paquet Kraft","Kraft",null,5.890625,0,1,3.77,3.77,0.36,5.890625,"5228"]
["Fromage philadelphia boite 250gr","Kraft",null,6.99,0]
["Lunchmate-Jambon ",null,null,5.09375,0,1,3.26,3.26,0.36,5.09375,"32012"]
["Lunchmate-Saucisse",null,null,5.09375,0,1,3.26,3.26,0.36,5.09375,"32017"]
["Margarine 427g","Lactancia",null,3.2838541666666665,0,24,50.44,2.1016666666666666,0.36,3.2838541666666665,"14224"]
["Margarine 454g ","Multi-choix",null,1.7962239583333335,0,24,27.59,1.1495833333333334,0.36,1.7962239583333335,"4001"]
["Margarine 900g ","Multi-choix",null,3.4778645833333335,0,12,26.71,2.2258333333333336,0.36,3.4778645833333335,"54530"]
["Œufs douzaine","Richard",null,4.7427083333333337,0,15,45.53,3.0353333333333334,0.36,4.7427083333333337,27392]
["Trempette Phil. Oignon 227gr","Kraft",null,4.99,{"$f":"C17*D17","v":0}]
["Trempette Phil. Herbe/Ail 227gr","Kraft",null,4.99,0]
["Trempette Phil. Cornichon/Aneth 227gr","Kraft",null,4.99,0]
[]
["Fromage Gasper"]
["Fromage bloc petit","GASPER",null,{"$f":"J22","v":6.53},{"$f":"C22*D22","v":0},null,null,null,null,6.53]
["Fromage bloc Gros (Variable)","GASPER",null,14.62,0,null,null,null,null,"Variable"]
["Fromage grain petit 220gr","GASPER",null,{"$f":"J24","v":5.4},0,null,null,null,null,5.4]
["Fromage grain Gros 500gr","GASPER",null,12.3,0,null,null,null,null,12.3]
["Fromage frais à tartiner Ail et Basilics","GASPER",null,6.45,0,null,null,null,null,6.45]
["Fromage frais à tartiner aux Légumes","GASPER",null,6.45,0,null,null,null,null,6.45]
["Fromage frais à tartiner Ranch","GASPER",null,6.45,0,null,null,null,null,6.45]
["Fromage frais à tartiner Érable et chipotle","GASPER",null,6.45,0,null,null,null,null,6.45]
[]
["Vache à Maillotte"]
["Fromage Tortillon 50gr","Vache à Maillotte",null,{"$f":"J32","v":2.19},{"$f":"C32*D32","v":0},null,null,null,null,2.19,"00062860550004"]
["Fromage Tortillon BBQ 50g","Vache à Maillotte",null,2.29,0,null,null,null,null,2.29,"00062860550036"]
["Fromage bloc Marbre 230g ","Vache à Maillotte",null,5.79,0,null,null,null,null,5.79,"00062860550038"]
["Fromage bloc jaune 230g ","Vache à Maillotte",null,5.99,0,null,null,null,null,5.99,"00062860550039"]
["Fromage Poutine 400g ","Vache à Maillotte",null,8.7899999999999991,0,null,null,null,null,8.7899999999999991,"00062860550201"]
["Fromage Râpé 500g","Vache à Maillotte",null,9.89,0,null,null,null,null,9.89,"00062860550207"]
[]
["VIANDE SURGELÉE"]
["Bavette de boeuf assaisonnée 1x225gr","Viande Première",null,{"$f":"J40","v":9.0793650793650809},{"$f":"C40*D40","v":0},18,114.4,{"$f":"G40/F40","v":6.3555555555555561},null,{"$f":"H40/0.7","v":9.0793650793650809},78501]
["Boeuf haché maigre 1x454gr","Viande Première",null,{"$f":"J41","v":5.6178571428571429},0,24,94.38,{"$f":"G41/24","v":3.9324999999999997},null,{"$f":"H41/0.7","v":5.6178571428571429},63630]
["Steak de boeuf haut de surlonge 2x170gr","Viande Première",null,11.99,{"$f":"C42*D42","v":0},20,76.27,{"$f":"G42/F42","v":3.8134999999999999},null,{"$f":"H42/0.7","v":5.447857142857143},68450]
["Steak de bœuf C+Filet C/C AA 1x285gr","Viande Première",null,12.99,{"$f":"C43*D43","v":0}]
["Cotelettes de porc 1/2\"  6x125gr","Viande Première",null,{"$f":"J44","v":9.4377551020408159},0,14,92.49,{"$f":"G44/F44","v":6.6064285714285713},null,{"$f":"H44/0.7","v":9.4377551020408159},3682]
["Porc haché 85% 1x454gr","Viande Première",null,{"$f":"J45","v":4.6845238095238102},0,12,39.35,3.2791666666666668,null,{"$f":"H45/0.7","v":4.6845238095238102},3714]
["Poulet prêt à cuire env 1,4kg ",null,null,9.7899999999999991,0,12,90.72,7.56,null,{"$f":"H46/0.75","v":10.08},60025]
["Poitrines poulet désossées gelées séparément 2x2kg ","Menu",null,{"$f":"J47","v":46.462499999999999},{"$f":"C47*D47","v":0},1,37.17,{"$f":"G47/F47","v":37.17},null,{"$f":"H47/0.8","v":46.462499999999999},28084]
["Tournedos poulet bacon 2x150gr","Dunham",null,{"$f":"J48","v":7.8999999999999995},0,12,71.099999999999994,5.9249999999999998,null,{"$f":"H48/0.75","v":7.8999999999999995},24841]
[]
["PRODUITS SURGELÉS"]
["Ailes de poulet BBQ douces","St-Hubert",null,{"$f":"J51","v":15.99},{"$f":"C51*D51","v":0},12,127.13,{"$f":"G51/F51","v":10.594166666666666},{"$f":"1-(H51/#REF!)","v":{"$error":"#REF!"}},15.99,50390]
["Ailes de poulet BBQ épicées","St-Hubert",null,15.99,0,12,127.13,10.594166666666666,{"$f":"1-(H52/#REF!)","v":{"$error":"#REF!"}},15.99,50454]
["Brocoli fleurette cong. 1kg","Art.Garden",null,6.2535714285714299,0,8,35.020000000000003,4.3775000000000004,null,{"$f":"H53/0.7","v":6.2535714285714299},56400]
["Choux-fleur fleurette cong. 1kg","Art.Garden",null,5.3650793650793647,0,9,33.799999999999997,3.7555555555555551,null,{"$f":"H54/0.7","v":5.3650793650793647},31500]
["Côtes levées BBQ","St-Hubert",null,18.690000000000001,0,12,133.13,11.094166666666666,{"$f":"1-(H55/#REF!)","v":{"$error":"#REF!"}},18.690000000000001,93012]
["Filet sole","Highliner",null,8.09,0,12,59.93,4.9941666666666666,{"$f":"1-(H56/#REF!)","v":{"$error":"#REF!"}},8.09,11312]
["Foie de veau","Skylark",null,2.19,0,40,45.15,1.1287499999999999,{"$f":"1-(H57/#REF!)","v":{"$error":"#REF!"}},2.19,3886]
["Fraises congelé 1kg","Menu",null,7.39,{"$f":"C58*D58","v":0}]
["Fruits congelés 4 Baies 1kg","Alasko",null,9.99,{"$f":"C59*D59","v":0}]
["Frites enrobées Cavendish","Cavendish",null,5.59,0,12,39.6,3.3000000000000003,{"$f":"1-(H60/#REF!)","v":{"$error":"#REF!"}},5.59,99838]
["Frites régulière Cavendish","Cavendish",null,5.19,0,12,33.97,2.8308333333333331,{"$f":"1-(H61/#REF!)","v":{"$error":"#REF!"}},5.19,95002]
["Légumes bistro cong. (fèves-carotte-Panais) 2kg","Bonduelle",null,8.8928571428571423,0,4,24.9,{"$f":"G62/4","v":6.2249999999999996},null,{"$f":"H62/0.7","v":8.8928571428571423},30785]
["Légumes californien cong. 750gr","Art.Garden",null,5.35,0,12,51.21,{"$f":"G63/F63","v":4.2675000000000001},null,5.35,94305]
["Pâtés impériaux au porc (pqts 6)","O Met Chinois",null,6.89,0,null,null,null,null,6.89]
["Pâté poulet 800gr","St-Hubert",null,11.99,{"$f":"C65*D65","v":0}]
["Pizza aux Légumes - La Calvette","La Calvette",null,13.79,0,null,null,null,null,13.79]
["Pizza Bacon Oignon - La Calvette","La Calvette",null,14.09,0,null,null,null,null,14.09]
["Pizza Carnivor - La Calvette","La Calvette",null,14.99,0,null,null,null,null,14.99]
["Pizza Gasper - La Calvette","La Calvette",null,16.690000000000001,0,null,null,null,null,16.690000000000001]
["Pizza Pépé Fom Bacon - La Calvette","La Calvette",null,13.89,0,null,null,null,null,13.89]
["Pizza Pépé From - La Calvette","La Calvette",null,13.89,0,null,null,null,null,13.89]
["Pizza pochette","McCain",null,5.59,0,16,51.1,{"$f":"G72/F72","v":3.1937500000000001},{"$f":"1-(H72/#REF!)","v":{"$error":"#REF!"}},5.59,45315]
["Pizza Poulet BBQ - La Calvette","La Calvette",null,14.99,0,null,null,null,null,14.99]
["Pizza Salade de la Mer - La Calvette","La Calvette",null,14.99,0,null,null,null,null,14.99]
["Pizza Toute Garnis - La Calvette","La Calvette",null,14.09,0,null,null,null,null,14.09]
["Pogo","Pogo",null,4.99,0,12,40.01,{"$f":"G76/F76","v":3.3341666666666665},{"$f":"1-(H76/#REF!)","v":{"$error":"#REF!"}},4.99,13154]
["Rondelles d'oignons","McCain",null,5.59,0,8,25.55,{"$f":"G77/F77","v":3.1937500000000001},{"$f":"1-(H77/#REF!)","v":{"$error":"#REF!"}},5.59,31189]
["Saucisses Ital douce Roma","Roma",null,8.2899999999999991,0,8,41.28,{"$f":"G78/F78","v":5.16},{"$f":"1-(H78/#REF!)","v":{"$error":"#REF!"}},8.2899999999999991,5543]
[]
["CHARCUTERIE"]
["Bacon en tranche 500gr","Lafleur",null,{"$f":"J81","v":8.671875},{"$f":"C81*D81","v":0},1,5.55,{"$f":"G81/F81","v":5.55},{"$f":"1-(H81/J81)","v":0.36},{"$f":"H81/0.64","v":8.671875},"32"]
["Bologne tranché 454gr","Olymel",null,4.3,0,null,"2,71//lb cost","4,30$/lb",null,4.3,"Maison/62060"]
["Bologne Unilox 500gr ","Olymel",null,6.486328125,0,8,33.21,{"$f":"G83/F83","v":4.1512500000000001},{"$f":"1-(H83/J83)","v":0.36},{"$f":"H83/0.64","v":6.486328125},"62058"]
["Jambon toupi tranché 454gr","Lafleur",null,5.5,0,null,"3,77/lb cost","5,50$/lb",null,5.5,"Maison/190"]
["Pastrami tranché 227gr","Lesters",null,4.7699999999999996,0,null,"6,21/lb cost","9,55$/lb",null,4.7699999999999996,"Maison/1435"]
["Peppéroni 500g ","Schneiders",null,11.79,0,6,49.57,{"$f":"G86/F86","v":8.2616666666666667},{"$f":"1-(H86/J86)","v":0.29926491376873054},11.79,"19201"]
["Peppéroni batonnet 250g","Schneiders",null,8.59,0,12,71.7,{"$f":"G87/F87","v":5.9750000000000005},{"$f":"1-(H87/J87)","v":0.30442374854481946},8.59,"18503"]
["Rosbif tranché 227gr","Lesters",null,4.7699999999999996,0,null,"6,64/lb cost","9,55$/lb",null,4.7699999999999996,"Maison/1712"]
["Saucisses hot-dog 375gr ","Hygrade",null,5.19,0,24,71.7,3.82,{"$f":"1-(H89/J89)","v":0.26396917148362242},5.19,"1 ou 2542"]
["Saucisses hot-dog BBQ 450gr","Lafleur",null,4.59,0,1,3.1,3.34,{"$f":"1-(H90/J90)","v":0.27233115468409586},4.59,"6505"]
[]
["EPICERIE "]
["Bacon éclat garn.salade 117gr","Club House",null,{"$f":"J93","v":5.09},{"$f":"C93*D93","v":0},6,19.47,{"$f":"G93/F93","v":3.2449999999999997},{"$f":"1-(H93/J93)","v":0.36247544204322202},5.09,3251]
["Base de bouillon poulet 400g","Loneys",null,7.59,0,12,58.55,4.8791666666666664,0.35715854194115071,7.59,49503]
["Beurre d`arachides",null,null,6.65,0,1,4.26,4.26,0.35939849624060161,6.65,60829]
["Bicarbonate de soude 500gr","Arm&Hammer",null,2.15,0,1,1.37,1.37,0.36279069767441852,2.15,61002]
["Biscuit Chips Ahoy",null,null,5.89,0,1,3.76,3.76,0.36162988115449912,5.89,60562]
["Biscuit Fudgeo",null,null,5.89,0,1,3.76,3.76,0.36162988115449912,5.89,60601]
["Biscuit Oreo",null,null,5.89,0,1,3.76,3.76,0.36162988115449912,5.89,60937]
["Biscuit soda salé Premium 450gr","Christie",null,6.15,0,1,3.94,3.94,0.35934959349593498,6.15,60942]
["Bouillon à fondue",null,null,6.59,0,1,4.1900000000000004,4.1900000000000004,0.36418816388467368,6.59,60854]
["Bouillon de bœuf sans sel 900ml","Campbell",null,3.89,0,12,30.42,2.5350000000000001,0.34832904884318761,3.89,11835]
["Bouillon de poulet sans sel  900ml","Campbell",null,3.89,0,12,30.42,2.5350000000000001,0.34832904884318761,3.89,15941]
["Bovril au bœuf 250ml","Bovril",null,6.05,0,1,3.91,3.91,0.35371900826446279,6.05,60853]
["Bovril au poulet 250ml","Bovril",null,6.05,0,1,3.91,3.91,0.35371900826446279,6.05,60852]
["Cacao Fry",null,null,6.59,0,1,4.21,4.21,0.36115326251896818,6.59,62762]
["Café Folgers",null,null,7.4296875,0,6,28.53,4.7549999999999999,0.36,{"$f":"H107/0.64","v":7.4296875},20605]
["Café instantané Maxwell House",null,null,7.49,0,1,3.99,4.99,0.33377837116154874,7.49,"Ville"]
["Café instantané Nescafé",null,null,7.49,0,1,3.99,4.99,0.33377837116154874,7.49,"Ville"]
["Café moulu  Mi-Noir 284gr","Bob Marley ",null,12.99,0,null,null,null,1,12.99]
["Café moulu Moyen 284gr","Bob Marley ",null,12.99,0,null,null,null,1,12.99]
["Caramel Grenache",null,null,2.578125,0,1,1.65,{"$f":"G112/F112","v":1.65},0.36,{"$f":"H112/0.64","v":2.578125},60827]
["Cassonade brillante 1kg","Lantic",null,3.99,0,1,2.4,2.4,0.39849624060150379,3.99,62765]
["Céréales Cheerios",null,null,5.140625,0,1,3.29,3.29,0.36,{"$f":"H114/0.64","v":5.140625},60957]
["Céréales Froot Loops",null,null,8.109375,0,1,5.19,5.19,0.36,{"$f":"H115/0.64","v":8.109375},60806]
["Céréales Frosted Flakes",null,null,8.109375,0,1,5.19,5.19,0.36,{"$f":"H116/0.64","v":8.109375},60807]
["Céréales Rice Krispies",null,null,6.21875,0,1,3.98,3.98,0.36,{"$f":"H117/0.64","v":6.21875},60809]
["Cerise Marasquin",null,null,4.79,0,1,3.05,3.05,0.36325678496868485,4.79,60863]
["Cheese whiz Kraft 500g",null,null,7.99,{"$f":"C119*D119","v":0},16,30.45,{"$f":"G119/F119","v":1.903125},{"$f":"1-(H119/J119)","v":0.36},{"$f":"H119/0.64","v":2.9736328125},"50246"]
["Chocolat blanc sac brisure 225gr","Hershey",null,5.59,0,18,65.2,3.6222222222222222,0.35201749155237527,5.59,74893]
["Chocolat en poudre Nesquick",null,null,7.484375,0,1,4.79,4.79,0.36,{"$f":"H121/0.64","v":7.484375},60049]
["Chocolat sac brisure mi-sucré 300gr","Baker's",null,4.99,0,1,3.19,3.19,0.36072144288577157,4.99,60992]
["Clamato extra-épicé 1,89 litre",null,null,6.19,0,8,31.63,3.9537499999999999,0.36126817447495962,6.19,14456]
["Clamato extra-épicé 945 ml",null,null,3.6,0,1,2.31,2.31,0.35833333333333328,3.6,62726]
["Clamato l`original 1,89 litre",null,null,6.19,0,8,31.63,3.9537499999999999,0.36126817447495962,6.19,14457]
["Clamato l`original 945 ml",null,null,{"$f":"J126","v":3.6},{"$f":"C126*D126","v":0},1,2.31,2.31,0.35833333333333328,3.6,62717]
["Coffee Mate",null,null,5.390625,0,1,3.45,3.45,0.36,{"$f":"H127/0.64","v":5.390625},60977]
["Combustible à fondue",null,null,2.29,0,1,1.45,1.45,0.36681222707423589,2.29,62753]
["Confiture framboises",null,null,4.484375,0,1,2.87,2.87,0.36,{"$f":"H129/0.64","v":4.484375},60821]
["Cornet",null,null,2.69,0,1,2.0299999999999998,2.0299999999999998,null,2.69,"60187"]
["Cornichon à l`Aneth à l`ail",null,null,5.69,0,12,43.8,3.65,{"$f":"1-(H131/J131)","v":0.35852372583479797},5.69,14707]
["Cornichon sucré",null,null,4.49,0,1,2.87,2.87,0.36080178173719379,4.49,60868]
["Craquelin Breton 225gr","Dare",null,4.6900000000000004,0,1,3.02,3.02,0.35607675906183378,4.6900000000000004,60406]
["Croûtons à l'ail 150gr","Grisol",null,3.05,0,1,1.94,1.94,0.36393442622950822,3.05,60513]
["Dattes dénoyautés",null,null,4.3899999999999997,0,1,2.83,2.83,0.3553530751708428,4.3899999999999997,60856]
["Épices à spaghetti 405gr","Club House",null,16.989999999999998,0,1,10.57,10.57,0.37786933490288399,16.989999999999998,91255]
["Extrait de vanille",null,null,5.99,0,6,22.97,3.8283333333333331,0.36087924318308295,5.99,27866]
["Farine tout usage 2,5kg","Robin Hood",null,9.19,0,1,5.89,5.89,0.35908596300326445,9.19,62760]
["Farine tout usage 20kg","Baker Rose",null,29.99,{"$f":"C139*D139","v":0}]
["Fécule de maïs 454gr","Corn Strach",null,4.49,0,1,2.88,2.88,0.35857461024498893,4.49,62761]
["Fèves blanches 900gr","St-Arnaud",null,4.29,0,1,2.8,2.8,0.34731934731934733,4.29,60369]
["Filtres à café",null,null,3.15,0,1,2,2,0.36507936507936511,3.15,62741]
["Fromage Parmesan râpé 125g","Kraft",null,6.19,0,1,3.98,3.98,0.35702746365105009,6.19,62712]
["Glaçage à la vanille",null,null,3.89,0,1,2.46,2.46,0.36760925449871473,3.89,60014]
["Glaçage au chocolat",null,null,3.89,0,1,2.46,2.46,0.36760925449871473,3.89,62702]
["Graisse pure lard 454gr","Tenderflake",null,5.35,0,1,3.42,3.42,0.36074766355140186,5.35,60801]
["Graisse shortening tout usage 454gr","Crisco",null,4.09375,0,1,2.62,2.62,0.36,{"$f":"H147/0.64","v":4.09375},60800]
["Grenadine",null,null,4.29,0,2.93,{"$f":"F148/B148","v":{"$error":"#DIV/0!"}},null,1,4.29,60582]
["Gruau rapide",null,null,4.09375,0,1,2.62,{"$f":"G149/F149","v":2.62},0.36,{"$f":"H149/0.64","v":4.09375},60538]
["Guimauves",null,null,3.29,0,12,24.23,2.0191666666666666,0.38627152988855118,3.29,13443]
["Huile Canola 4 litres",null,null,8.69,0,4,22.12,5.53,0.36363636363636354,8.69,4281]
["Huile Canola 946 ml",null,null,3.85,0,12,28.7,2.3916666666666666,0.37878787878787878,3.85,7970]
["Huile d'olive extra-vierge 100% 750ml","Sheylus",null,6.1917989417989414,0,12,46.81,3.9008333333333334,0.37,{"$f":"H153/0.63","v":6.1917989417989414},82845]
["Huile d'olives pure 250ml","Bertolli",null,6.99,0,1,4.4800000000000004,4.4800000000000004,0.35908440629470673,6.99,60506]
["Ketchup 375ml","Heinz",null,3.99,0,1,2.54,2.54,0.36340852130325818,3.99,60965]
["Kraft dîner",null,null,2.75,0,35,61.8,1.7657142857142856,0.35792207792207797,2.75,21854]
["Lait évaporé ","Carnation",null,2.953125,0,1,1.89,1.89,0.36,{"$f":"H157/0.64","v":2.953125},62771]
["Lait sucré condensé 300ml","Eagle bran",null,5.99,0,24,86.25,3.59375,0.40004173622704509,5.99,14721]
["Levure rapide 3x8gr","Fleischman",null,{"$f":"J159","v":3.09},{"$f":"C159*D159","v":0},18,35,1.9444444444444444,0.37072995325422509,3.09,58035]
["Levure traditionnel 113gr","Fleischman",null,7.45,0,12,56.3,4.6916666666666664,0.37024608501118572,7.45,90263]
["Maïs a éclater sac 1kg","Thompsons",null,3.45,0,12,21.45,1.7874999999999999,0.48188405797101452,3.45,15184]
["Maïs à éclater smart pop x-beurre","Redenbache",null,4.59,0,12,34.71,2.8925000000000001,0.36982570806100212,4.59,60778]
["Map-O-Spread",null,null,3.49,0,1,2.23,2.23,0.36103151862464189,3.49,60356]
["Mayonnaise Hellman",null,null,5.75,0,1,3.68,3.68,0.36,{"$f":"H164/0.64","v":5.75},60106]
["Mélange à crêpes",null,null,4.8899999999999997,0,1,3.15,3.15,0.35582822085889565,4.8899999999999997,60379]
["Mélange à gâteau chocolat",null,null,3.453125,0,1,2.21,2.21,0.36,{"$f":"H166/0.64","v":3.453125},62701]
["Mélange à gâteau vanille",null,null,3.453125,0,1,2.21,2.21,0.36,{"$f":"H167/0.64","v":3.453125},60950]
["Mélasse",null,null,5.6875,0,1,3.64,3.64,0.36,{"$f":"H168/0.64","v":5.6875},60826]
["Miel d'été crémeux Grande Ours 1kg","La Grande Ours",null,14.39,0,null,null,null,null,14.39]
["Miel d'été crémeux Grande Ours 375gr","La Grande Ours",null,5.89,0,null,null,null,null,5.89]
["Miel d'été liquide Grande Ours 1kg","La Grande Ours",null,14.39,0,null,null,null,null,14.39]
["Miel d'été liquide Grande Ours 375gr","La Grande Ours",null,5.89,0,null,null,null,null,5.89]
["Moules à muffin",null,null,1.29,0,24,19.079999999999998,{"$f":"G173/F173","v":0.79499999999999993},{"$f":"1-(H173/J173)","v":0.38372093023255827},1.29,21317]
["Moutarde",null,null,2.4900000000000002,0,1,1.48,1.48,0.40562248995983941,2.4900000000000002,60916]
["Nouilles Instant. Bœuf 55gr","Gattuso",null,2.15,0,12,16.579999999999998,1.3816666666666666,0.35736434108527138,2.15,10584]
["Nouilles Instant. Poulet 55gr","Gattuso",null,2.15,0,12,16.579999999999998,1.3816666666666666,0.35736434108527138,2.15,10585]
["Nutella",null,null,6.15,0,1,3.95,3.95,0.35772357723577242,6.15,62773]
["Pâtes Coquilles (petites)","Catelli",null,3.85,0,12,29.62,2.4683333333333333,0.3588744588744589,3.85,14285]
["Pâtes Fettucine ","Catelli",null,3.99,0,1,2.62,2.62,0.34335839598997497,3.99,60956]
["Pâtes Fusilli","Catelli",null,4.09375,0,1,2.62,2.62,0.36,{"$f":"H180/0.64","v":4.09375},60392]
["Pâtes Lasagne ","Catelli",null,5.19,0,1,3.34,3.34,0.35645472061657035,5.19,60888]
["Pâtes Macaroni coupé ","Catelli",null,4.09375,0,1,2.62,2.62,0.36,{"$f":"H182/0.64","v":4.09375},60894]
["Pâtes Spaghetti ","Catelli",null,3.99,0,1,2.62,2.62,0.34335839598997497,3.99,60885]
["Pâtes Spaghetti ","Primo",null,4.6900000000000004,0,12,31.84,2.6533333333333333,0.43425728500355376,4.6900000000000004,17415]
["Pâtes Spaghettini","Catelli",null,3.99,0,1,2.62,2.62,0.34335839598997497,3.99,60892]
["Pâtes Spaghettini ","Primo",null,4.6900000000000004,0,12,31.84,2.6533333333333333,0.43425728500355376,4.6900000000000004,17409]
["Poivre noir moulu 45gr","MCCormick",null,8.99,0,6,34.5,5.75,0.36040044493882095,8.99,1041]
["Poudre à pâte 225gr","Magic",null,4.99,0,1,3.19,3.19,0.36072144288577157,4.99,60065]
["Raisins secs sultana cello 375gr","Wasco",null,3.89,0,1,2.48,2.48,0.36246786632390748,3.89,60855]
["Relish sucrée",null,null,2.39,0,1,1.54,1.54,0.35564853556485354,2.39,60915]
["Riz Uncle Bens",null,null,{"$f":"J191","v":6.89},{"$f":"C191*D191","v":0},1,4.42,4.42,0.35849056603773588,6.89,60831]
["Sachet sauce Alfredo","Past.Prima",null,2.5499999999999998,0,12,19.62,1.635,0.35882352941176465,2.5499999999999998,27952]
["Sauce à salade Miracle Whip",null,null,4.8899999999999997,0,1,3.15,3.15,0.35582822085889565,4.8899999999999997,60917]
["Sauce aux cerises 341ml","VH",null,4.29,0,12,31.61,2.6341666666666668,0.385975135975136,4.29,10178]
["Sauce aux prunes 341ml","VH",null,4.29,0,1,2.71,2.71,0.36829836829836826,4.29,60952]
["Sauce BBQ rég. plastique 455ml","Kraft",null,4.05,0,1,2.6,2.6,0.35802469135802462,4.05,60973]
["Sauce chili 455ml","Heinz",null,6.55,0,1,4.1900000000000004,4.1900000000000004,0.36030534351145027,6.55,62012]
["Sauce en canne BBQ","St-Hubert",null,2.85,0,24,44.83,1.8679166666666667,0.34459064327485378,2.85,89023]
["Sauce en canne hot-chicken","St-Hubert",null,2.85,0,24,44.83,1.8679166666666667,0.34459064327485378,2.85,14112]
["Sauce en canne poutine","St-Hubert",null,2.85,0,24,44.83,1.8679166666666667,0.34459064327485378,2.85,17313]
["Sauce en canne trois poivres 284ml","Cordon Bleu",null,3.5000000000000004,0,1,2.2400000000000002,2.2400000000000002,0.36,{"$f":"H201/0.64","v":3.5000000000000004},60997]
["Sauce HP 250ml","Heinz",null,3.99,0,1,2.2799999999999998,2.2799999999999998,0.4285714285714286,3.99,60497]
["Sauce sachet a la King","St-Hubert",null,2.4500000000000002,0,24,37.380000000000003,1.5575000000000001,0.36428571428571432,2.4500000000000002,71690]
["Sauce sachet aux poivres","St-Hubert",null,2.4500000000000002,0,24,37.380000000000003,1.5575000000000001,0.36428571428571432,2.4500000000000002,17301]
["Sauce sachet BBQ","St-Hubert",null,2.4500000000000002,0,24,37.299999999999997,{"$f":"G205/F205","v":1.5541666666666665},{"$f":"1-(H205/J205)","v":0.36564625850340149},2.4500000000000002,71005]
["Sauce sachet hot-chicken","St-Hubert",null,2.4500000000000002,0,24,37.380000000000003,1.5575000000000001,0.36428571428571432,2.4500000000000002,71700]
["Sauce sachet poutine","St-Hubert",null,2.4500000000000002,0,24,37.380000000000003,1.5575000000000001,0.36428571428571432,2.4500000000000002,73120]
["Sauce soya 380ml","VH",null,3.59,0,12,27.48,2.29,0.36211699164345401,3.59,10053]
["Sauce Tabasco original 57ml","Tabasco",null,4.59,0,1,2.96,2.96,0.355119825708061,4.59,60155]
["Sauce Tamari sans gluten 296ml","San-J",null,5.79,{"$f":"C210*D210","v":0}]
["Sauce Worcestershire 142ml","Lea Perrin",null,3.39,0,1,2.16,2.16,0.36283185840707965,3.39,62048]
["Sel de table ",null,null,1.49,0,1,0.78,0.78,0.47651006711409394,1.49,34030]
["Sel de table – salière 250gr","Sifto",null,2.4900000000000002,0,1,1.64,1.64,0.3413654618473897,2.4900000000000002,60966]
["Shake`n Bake Poulet BBQ 184gr","Kraft",null,3.59,0,1,2.29,2.29,0.36211699164345401,3.59,60517]
["Sidekicks Carbonara bacon","Sidekicks",null,3.1,0,8,13.7,1.7124999999999999,0.44758064516129037,3.1,18112]
["Sidekicks Fettucini Alfredo","Sidekicks",null,3.1,0,8,13.7,1.7124999999999999,0.44758064516129037,3.1,18117]
["Sidekicks Fusilli poulet","Sidekicks",null,3.1,0,8,13.7,1.7124999999999999,0.44758064516129037,3.1,18110]
["Sidekicks Riz sauce poulet jardinière","Sidekicks",null,3.1,0,8,13.7,1.7124999999999999,0.44758064516129037,3.1,18139]
["Sirop de maïs",null,null,4.79,0,1,3.09,3.09,0.35490605427974953,4.79,60825]
["Sirop d'érable méd/clair du Quebec 540ml",null,null,8.69,0,1,5.49,5.49,0.36823935558112764,8.69,10148]
["Sucre 2kg","Lantic",null,4.5999999999999996,0,10,28.95,2.895,0.37065217391304339,4.5999999999999996,45866]
["Sucre à glacer 1kg","Identic",null,3.546875,0,1,2.27,2.27,0.36,{"$f":"H222/0.64","v":3.546875},66000]
["Vinaigre  4 litres",null,null,3.15,0,4,8.02,2.0049999999999999,0.36349206349206353,3.15,24630]
["Vinaigrette César crémeuse 250ml","Kraft",null,3.19,{"$f":"C224*D224","v":0},1,2.0499999999999998,2.0499999999999998,0.3573667711598747,3.19,60922]
["Ziploc congélation – grand",null,null,6.25,0,1,3.98,3.98,0.36319999999999997,6.25,62740]
["Ziploc sandwich",null,null,6.25,0,12,47.93,3.9941666666666666,0.36093333333333333,6.25,26284]
[null,null,null,null,null,null,null,null,{"$f":"1-(H227/J227)","v":{"$error":"#DIV/0!"}}]
["Conserves"]
["Ananas en tranche canne 398ml","Del Monte",null,{"$f":"J229","v":2.39},{"$f":"C229*D229","v":0},1,1.61,{"$f":"G229/F229","v":1.61},{"$f":"1-(H229/J229)","v":0.32635983263598323},2.39,60859]
["Champignon canne 284ml","Multichoix",null,1.99,0,24,21.25,0.88541666666666663,0.55506700167504186,1.99,14645]
["Crème de céleri 284ml","Campbell",null,2.85,0,1,1.83,1.83,0.35789473684210527,2.85,60848]
["Crème de champignon canne 284ml","Aylmer",null,2.0499999999999998,0,1,1.32,1.32,0.35609756097560963,2.0499999999999998,60655]
["Crème de poulet canne 284ml","Aylmer",null,2.523076923076923,0,1,1.64,1.64,0.35,{"$f":"H233/0.65","v":2.523076923076923},60111]
["Fèves au lard mélasse canne 398ml","Clark",null,2.4,0,1,1.55,1.55,0.35416666666666663,2.4,60913]
["Fèves au lard sirop d’érable canne 398ml","Clark",null,2.4,0,1,1.55,1.55,0.35416666666666663,2.4,60962]
["Huîtres fumées 85gr","Cloverleaf",null,3.1,0,1,1.97,1.97,0.36451612903225805,3.1,60998]
["Jambon en flocon canne 156gr","Maple Leaf",null,4.79,0,1,3.06,3.06,0.36116910229645094,4.79,60904]
["Jus de tomates canne 540ml","Heinz",null,2.19,0,1,1.41,1.41,0.35616438356164382,2.19,62714]
["Légumes macédoine canne 398ml","Geant vert",null,2.4,0,1,1.55,1.55,0.35416666666666663,2.4,60999]
["Mais en crème canne 398ml","Geant vert",null,2.29,0,12,17.649999999999999,1.4708333333333332,0.35771470160116459,2.29,16670]
["Mais en grain canne 199ml","Geant vert",null,1.552734375,0,24,23.85,0.99375000000000002,0.36,{"$f":"H241/0.64","v":1.552734375},16661]
["Mélange a soupe a l'oignon ","Knorr",null,2.75,0,1,1.75,1.75,0.36363636363636365,2.75,60990]
["Mélange a soupe poulet nouilles","Lipton",null,2.65,0,1,1.7,1.7,0.35849056603773588,2.65,80063]
["Paris pâté jam/veau canne 78gr","Paris pâté",null,2.89,0,1,1.86,1.86,0.356401384083045,2.89,60899]
["Paris pâté jambon canne 78gr","Paris pâté",null,2.89,0,1,1.85,1.85,0.35986159169550169,2.89,60900]
["Pâte de tomates canne 369ml","Heinz",null,2.25,0,24,33.700000000000003,1.4041666666666668,0.37592592592592589,2.25,14184]
["Pois vert 284ml","Multichoix",null,1.75,0,1,1.1299999999999999,1.1299999999999999,0.35428571428571431,1.75,60875]
["Poulet en flocon canne 156gr","Maple Leaf",null,4.79,0,1,3.06,3.06,0.36116910229645094,4.79,60905]
["Ragoût de boulettes canne 410ml","Cordon Bleu",null,6.578125,0,1,4.21,4.21,0.36,{"$f":"H249/0.64","v":6.578125},60996]
["Ragoût de boulettes canne 665ml","Cordon Bleu",null,9.99,0,1,6.46,6.46,0.35335335335335338,9.99,60986]
["Sauce à Lasagne canne 398ml","Gattuso",null,2.99,0,12,22.95,1.9124999999999999,0.36036789297658867,2.99,89026]
["Sauce à pizza canne 398ml","Gattuso",null,2.75,0,1,1.74,1.74,0.36727272727272731,2.75,60930]
["Sauce spag a la viande canne 398ml","Catelli",null,2.796875,0,1,1.79,1.79,0.36,{"$f":"H253/0.64","v":2.796875},60953]
["Sauce spag a la viande canne 680ml","Catelli",null,4.3499999999999996,0,1,2.78,2.78,0.36091954022988504,4.3499999999999996,60933]
["Sauce tomates canne 680ml","Hunt",null,2.99,0,12,23.27,1.9391666666666667,0.35144927536231885,2.99,14658]
["Soupe aux tomates canne 284ml","Aylmer",null,1.99,0,1,0.96,0.96,0.51758793969849248,1.99,60428]
["Thon pâle dans l'eau canne 170gr","Cloverleaf",null,2.85,0,1,1.82,1.82,0.36140350877192984,2.85,60969]
["Tomates en dés canne 796ml","Aylmer",null,3.35,0,1,2.15,2.15,0.35820895522388063,3.35,60873]
[]
["GÂTEAUX VACHON"]
["1/2 Lune Vanille (6 un) 282gr",null,null,3.99,{"$f":"C261*D261","v":0}]
["Ah Caramel (12 un) 336gr",null,null,3.99,0]
["Billot Log à la gelée (6 un) 288gr",null,null,3.99,0]
["Brownies (6 un) 252gr",null,null,3.99,0]
["Jos Louis Original (6 un) 324gr",null,null,3.99,0]
["Mille Feuilles (6 un) 291gr",null,null,3.99,0]
["Passion Flakies Caramel (6 un) 305gr",null,null,3.99,0]
["Passion Flakies Pomme-Framboise (6 un) 305gr",null,null,3.99,0]
["Tartelettes Granny's Pacanes (6 un) 248gr",null,null,3.99,0]
[]
["Divers"]
["Briquet  Charbon Petit ",null,null,{"$f":"J272","v":10.40625},{"$f":"C272*D272","v":0},1,6.66,{"$f":"G272/F272","v":6.66},{"$f":"1-(H272/J272)","v":0.36},{"$f":"H272/0.64","v":10.40625},"17600  "]
["Briquet Charbon Gros",null,null,16.6875,0,1,10.68,10.68,0.36,16.6875,"16257"]
["Briquet long BBQ Bic",null,null,4.765625,0,1,3.05,3.05,0.36,4.765625,1684]
["Crayon de plomb X10",null,null,4.671875,0,1,2.99,2.99,0.36,4.671875,"12828"]
["Essence Briquet ",null,null,3.046875,0,1,1.95,1.95,0.36,3.046875,"28134"]
["Huile lampe",null,null,5.390625,0,1,3.45,3.45,0.36,5.390625,"12647"]
["Scotch Tape  ",null,null,1.9375,0,1,1.24,1.24,0.36,1.9375,"11409"]
["Sel Déglaçage",null,null,5.265625,0,1,3.37,3.37,0.36,5.265625,"6734"]
[null,null,null,null,null,null,null,null,{"$f":"1-(H280/J280)","v":{"$error":"#DIV/0!"}}]
["Pile"]
["3A  X2   ",null,null,{"$f":"J282","v":2.78125},{"$f":"C282*D282","v":0},1,1.78,{"$f":"G282/F282","v":1.78},{"$f":"1-(H282/J282)","v":0.36},{"$f":"H282/0.64","v":2.78125},"18082"]
["3A  X4   ",null,null,6.625,0,1,4.24,4.24,0.36,6.625,"95056"]
["2A  X2   ",null,null,2.8125,0,1,1.8,1.8,0.36,2.8125,"18065"]
["2A  X4    ",null,null,4.59375,0,1,2.94,2.94,0.36,4.59375,"95005"]
["C X2      ",null,null,6.203125,0,1,3.97,3.97,0.36,6.203125,"95006"]
["D X2    ",null,null,5.75,0,1,3.68,3.68,0.36,5.75,"18144"]
["9V Carré",null,null,4.78125,0,1,3.06,3.06,0.36,4.78125,"18184"]
[]
["Briquet Bic"]
["Gros",null,null,2.29,{"$f":"C291*D291","v":0}]
["Petit",null,null,1.59,{"$f":"C292*D292","v":0},null,null,null,null,null,1683]
[null,null,"Sous-total :",null,{"$f":"SUM(E5:E292)","v":0}]

{"sheet":"Pains","index":5,"n_rows":18,"n_cols":11,"rows_kept":18,"cut":false,"hidden":false,"merged":[[17,2,17,3]]}
["La Calvette, Magasin Général de Landrienne, 819-727-9559"]
["Le prix inscrit est une indication que nous essayons de respecter, mais nous devons nous ajuster aux fluctuations au jour le jour."]
["Desription #1","Desription #2","Qté","Prix","Total",null,null,null,null,null,"Qté"]
["Pain Gadoua","Marque","Qté","Vendant"]
["Pain blanc à club 675gr","Gadoua",null,3.59,{"$f":"C5*D5","v":0}]
["Pain brun à club 675gr","Gadoua",null,3.59,{"$f":"C6*D6","v":0}]
["Pain blanc Italien 675gr","Gadoua",null,3.59,0]
["Pain brun Italien 675gr","Gadoua",null,3.59,0]
["Pain hamburger 6 un.","Gadoua",null,3.49,0]
["Pain hamburger Crustini 8 un.","Gadoua",null,3.69,{"$f":"C10*D10","v":0}]
["Pain hot-dog 6 un.","Gadoua",null,3.19,0]
["Pain Country Blé 600gr","Gadoua",null,3.79,0]
["Pain Country Blanc 600gr","Gadoua",null,3.79,0]
["Pain Country 14 grains","Gadoua",null,3.79,0]
["Pain blanc miche M.Doré","Gadoua",null,3.79,0]
["Pain Français","Menu",null,2.39,{"$f":"C16*D16","v":0}]
["Tortillas Casa Mendosa 640g","Menu",null,4.6900000000000004,0]
[null,null,"Sous-total :",null,{"$f":"SUM(E5:E17)","v":0}]

{"sheet":"Pr. Laitier","index":6,"n_rows":26,"n_cols":6,"rows_kept":26,"cut":false,"hidden":false,"merged":[[25,2,25,3]]}
["La Calvette, Magasin Général de Landrienne, 819-727-9559"]
["Le prix inscrit est une indication que nous essayons de respecter, mais nous devons nous ajuster aux fluctuations au jour le jour."]
["Desription #1","Desription #2","Qté","Prix","Total"]
["Produit laitier",null,"Qté","Vendant","Code","Marque"]
["Natrel 1L 1%",null,null,2.99,{"$f":"C5*D5","v":0},1021]
["Natrel 2L 1%",null,null,5.09,{"$f":"C6*D6","v":0},1022]
["Natrel 4L 1%",null,null,8.99,0,1024]
["Natrel 1L 2%",null,null,2.99,0,1011]
["Natrel 2L 2%",null,null,5.09,0,1012]
["Natrel 4L 2%",null,null,8.99,0,1014]
["Natrel 1L 3,25%",null,null,2.99,0,1001]
["Natrel 2L 3,25%",null,null,5.09,0,1002]
["Natrel 4L 3,25%",null,null,8.99,0,1004]
["Québon 473ml 2%",null,null,1.55,0,12301]
["Sans Lactose 2L 2%",null,null,6.39,0,25501]
["Lait chocolat Québon 473ml",null,null,2.19,0,18301]
["Lait chocolat Québon1L carton",null,null,3.45,0,"9401"]
["Lait chocolat Québon 2L plastique",null,null,6.39,0,10518]
["Crème à café 10% Québon 473ml",null,null,3.79,0,22057]
["Crème à cuisson 15% Québon 473ml",null,null,3.79,0,76055]
["Crème à fouetter 35% Québon 473ml",null,null,5.39,0,24057]
["Fromage cottage 2% 500gr",null,null,4.1900000000000004,{"$f":"C22*D22","v":0}]
["Crème sure 14% Sealtest 250ml",null,null,2.9,0,626]
["Yogourt Grec Vanille 2% IOGO 750gr",null,null,7.99,{"$f":"C24*D24","v":0}]
["Yogourt Fraise 0% IOGO 650gr",null,null,4.99,0,626]
[null,null,"Sous-total :",null,{"$f":"SUM(E5:E25)","v":0}]

{"sheet":"Frais","index":7,"n_rows":28,"n_cols":11,"rows_kept":28,"cut":false,"hidden":false,"merged":[[27,2,27,3]]}
["La Calvette, Magasin Général de Landrienne, 819-727-9559"]
["Le prix inscrit est une indication que nous essayons de respecter, mais nous devons nous ajuster aux fluctuations au jour le jour."]
["Desription #1","Desription #2","Qté","Prix","Total",null,null,null,null,null,"Qté"]
["LÉGUMES"]
["Ail frais (3 un)","Le prix de ces articles peut varier",null,1.99,{"$f":"C5*D5","v":0}]
["Betterave 2lb (Qc)","Le prix de ces articles peut varier",null,3.1,{"$f":"C6*D6","v":0}]
["Brocoli ","Le prix de ces articles peut varier",null,4.53,0]
["Carotte 2lb","Le prix de ces articles peut varier",null,3.99,0]
["Céleri","Le prix de ces articles peut varier",null,4.8,0]
["Champignon 8oz (Canada)","Le prix de ces articles peut varier",null,3.99,0]
["Chou vert","Le prix de ces articles peut varier",null,4.8,0]
["Citron (1 un)","Le prix de ces articles peut varier",null,1.1000000000000001,0]
["Citron (6 un)","Le prix de ces articles peut varier",null,6.45,0]
["Laitue Boston  (Qc)","Le prix de ces articles peut varier",null,4.29,0]
["Laitue Iceberg ","Le prix de ces articles peut varier",null,3.51,0]
["Navet/Rutabaga (Qc)","Le prix de ces articles peut varier",null,4.7,0]
["Oignon jaune 2lb  (Qc)","Le prix de ces articles peut varier",null,1.99,0]
["Patate rouge sac 10 lb  (Qc)","Le prix de ces articles peut varier",null,8.56,0]
["Patate sac 10 lb  (Qc)","Le prix de ces articles peut varier",null,6.79,0]
["Piment rouge (Canada) prix à la livre","Le prix de ces articles peut varier",null,4.99,0]
["Tomate rouge à l'unité","Le prix de ces articles peut varier",null,1.42,0]
[]
["FRUITS"]
["Banane Chiquita à l'unité","Le prix de ces articles peut varier",null,0.99,{"$f":"C24*D24","v":0}]
["Orange Navel à l'unité","Le prix de ces articles peut varier",null,0.75]
["Orange Navel 4lb","Le prix de ces articles peut varier",null,8.6,0]
["Pommes Mc Intosh (Qc) 3lb","Le prix de ces articles peut varier",null,3.99,0]
[null,null,"Sous-total :",null,{"$f":"SUM(E5:E27)","v":0}]

{"sheet":"Eaux","index":8,"n_rows":17,"n_cols":10,"rows_kept":17,"cut":false,"hidden":false,"merged":[[16,2,16,3]]}
["La Calvette, Magasin Général de Landrienne, 819-727-9559"]
["Le prix inscrit est une indication que nous essayons de respecter, mais nous devons nous ajuster aux fluctuations au jour le jour."]
["Desription #1","Desription #2","Qté","Prix","Total",null,null,null,null,"Qté"]
["Eau"]
["ONIBI eau 18 litres",null,null,7.79,{"$f":"C5*D5","v":0}]
["ESKA EAU 12x500ml",null,null,4.99,{"$f":"C6*D6","v":0}]
["ESKA EAU 24x500ml",null,null,6.99,0]
["ESKA EAU 1x500ml",null,null,1.29,0]
["ESKA EAU 1x1LT",null,null,1.59,0]
["ESKA EAU 1x1,5LT",null,null,1.89,0]
["ESKA EAU 1x4LT",null,null,2.99,0]
["EAU GAZ. 1x355ml",null,null,1.59,0]
["EAU GAZ. CITRON 1x355ml",null,null,1.59,0]
["ESKA EAU GAZÉIFIÉE 1x750ml",null,null,2.59,0]
["ESKA EAU GAZÉIFIÉ CITRON 1x750ml",null,null,2.59,0]
["ESKA EAU GAZÉIFIÉ CANNEBERGE 1x750ml",null,null,2.59,0]
[null,null,"Sous-total :",null,{"$f":"SUM(E5:E16)","v":0}]

{"sheet":"Desserts","index":9,"n_rows":49,"n_cols":11,"rows_kept":49,"cut":false,"hidden":false,"merged":[[48,2,48,3]]}
["La Calvette, Magasin Général de Landrienne, 819-727-9559"]
["Le prix inscrit est une indication que nous essayons de respecter, mais nous devons nous ajuster aux fluctuations au jour le jour."]
["Desription #1","Desription #2","Qté","Prix","Total",null,null,null,null,null,"Qté"]
["Dessert comptoir "]
["Biscuit - Pqt 3 CHOCO/CANNEBERGE",null,null,2.4900000000000002,{"$f":"C5*D5","v":0}]
["Biscuit - Pqt 3 DOUBLE CHOCO",null,null,2.4900000000000002,0]
["Biscuit - Pqt 3 MACADAM",null,null,2.4900000000000002,0]
["Biscuit - Pqt 3 RANDONNEUR",null,null,2.4900000000000002,0]
["Biscuit - Pqt 6 CHOCO/CANNEBERGE",null,null,4.49,0]
["Biscuit - Pqt 6 DOUBLE CHOCO",null,null,4.49,0]
["Biscuit - Pqt 6 MACADAM",null,null,4.49,0]
["Biscuit - Pqt 6 RANDONNEUR",null,null,4.49,0]
["Les Beignes à Laly (pqt 3)",null,null,3.19,{"$f":"C13*D13","v":0}]
["Bretzel",null,null,4.29,0]
["Danoise avalanche choco",null,null,3.79,0]
["Galettes à la mélasse à l'unité ",null,null,1.99,0]
["Macaron - Pqt de 3",null,null,3.69,0]
["Macarons - Pqt de 6 ",null,null,6.99,0]
["Macarons à l'unité",null,null,1.49,0]
["Sucre à la crème maison",null,null,1.49,0]
[]
["Dessert réfrigéré - portion individuel "]
["Brownie chocolat Hollandais  ",null,null,2.99,{"$f":"C23*D23","v":0}]
["Carré aux dattes ",null,null,2.69,0]
["Gâteau aux carottes",null,null,4.49,0]
["Gâteau sauce sucrée à la crème",null,null,3.69,0]
["Nanaïmo",null,null,1.49,0]
["Pouding chômeur",null,null,3.49,0]
["Tarte au sucre ",null,null,2.99,0]
["Yogourt fruits et granola ",null,null,4.59,0]
[]
["Dessert réfrigéré - portion FAMILIALE "]
["Gâteau aux carottes La Calvette",null,null,10,{"$f":"C33*D33","v":0}]
["Gâteau McCain",null,null,7.85,0]
["Gâteau sauce sucrée à la crème La Calvette",null,null,10,0]
["Mille-feuilles",null,null,8.49,0]
["Pouding chômeur La Calvette",null,null,10,0]
["Tarte au chocolat",null,null,11.49,0]
["Tarte Squizz choco",null,null,14.59,0]
[]
["Crème Glacé Coaticook"]
["Caramel",null,null,6.79,{"$f":"C42*D42","v":0}]
["Chocolat 2 litres",null,null,5.79,0]
["Erable et noix 2 litres",null,null,5.79,0]
["Fraise 2 litres",null,null,5.79,0]
["Framboise 2 litres",null,null,5.79,0]
["Fudge 2 litres",null,null,5.79,0]
["Vanille 2 litres",null,null,5.79,0]
[null,null,"Sous-total :",null,{"$f":"SUM(E5:E48)","v":0}]

{"sheet":"Breuvages","index":10,"n_rows":197,"n_cols":5,"rows_kept":197,"cut":false,"hidden":false,"merged":[[196,2,196,3]]}
["La Calvette, Magasin Général de Landrienne, 819-727-9559"]
["Le prix inscrit est une indication que nous essayons de respecter, mais nous devons nous ajuster aux fluctuations au jour le jour."]
["Desription #1","Desription #2","Qté","Prix","Total"]
["Jus",null,null,null,{"$f":"C4*D4","v":0}]
["DOLE FRAISE-KIWI","1X 450ml",null,2.69,0]
["DOLE JUS DE POMME","1X 450ml",null,2.69,0]
["DOLE JUS D'ORANGE","1X 450ml",null,2.69,0]
["Jus d'ananas 960ml",null,null,2.75,0]
["Jus de pommes 960ml",null,null,2.75,0]
["Jus de raisins 8x200ml",null,null,4.79,0]
["Jus d'oranges 3x200ml",null,null,2.1222222222222222,0]
["Jus d'oranges 960ml",null,null,2.75,{"$f":"C12*D12","v":0}]
["Jus Fruite Limonade 2 litres",null,null,3.49,0]
["Jus Fruite Orange 2 litres",null,null,3.49,0]
["Jus Minute Maide Orange 355ml",null,null,2.4900000000000002,0]
["Jus Minute Maide Pomme 355ml",null,null,2.4900000000000002,0]
["Jus orange 1,89lt Sunny Delight",null,null,4.99,0]
["Jus orange 500ml Sunny Delight",null,null,1.75,0]
["Jus Pomme pur 8x200ml",null,null,4.79,0]
["Jus pomme Rougemont 2 litres",null,null,5.3,0]
["Jus punch aux fruits 8x200ml",null,null,4.79,0]
["Jus Tropical Oasis 960ml",null,null,2.75,0]
["Jus Tropicana 355ml",null,null,2.4900000000000002,0]
["OCEAN SPRAY RAISIN CANNEBERGE","1X 450ml",null,2.69,0]
["V8 Bouteille",null,null,2.0182291666666665,0]
["V8 Canne",null,null,0.79947916666666652,0]
[]
["Liqueur"]
["7UP","1X Can 355ML",null,1.19,{"$f":"C29*D29","v":0}]
["7UP","12 Can 355ml",null,6.49,0]
["7UP","2L ",null,3.29,0]
["7UP ","1 X 591ML Platique",null,2.4900000000000002,0]
["7UP DIÈTE","1 X 591ML Platique",null,2.4900000000000002,0]
["7UP DIÈTE","1X Can 355ML",null,1.19,0]
["7UP DIÈTE","12 Can 355ml",null,6.49,0]
["7UP DIÈTE","2L ",null,3.29,0]
["BRISK FRAMBOISE","710ML CN 1/12 SW",null,2.79,0]
["BRISK H/H LIMONADE","710ML CN 1/12 SW",null,2.79,0]
["BRISK LIMONADE","591ML PL 1/24 (Q)",null,2.4900000000000002,0]
["BRISK THÉ","473ML CN 1/12 (Q)",null,1.89,0]
["BRISK THÉ GLACÉ","591ML PL 1/24 (Q)",null,2.4900000000000002,0]
["BRISK THÉ LIMONADE","710ML CN 1/12 (Q)",null,2.79,0]
["BRISK THÉ MELON D'EAU","710ML CN 1/12 SW",null,2.79,0]
["CANADA DRY 250ml plastique",null,null,1.29,0]
["CANADA DRY 500ml plastique",null,null,2.29,0]
["COCA-COLA 2 litres",null,null,3.29,0]
["COCA-COLA 237ml Vitre","Coke",null,1.89,0]
["COCA-COLA 250ml plastique",null,null,1.29,0]
["COCA-COLA 500ml plastique",null,null,2.29,0]
["COCA-COLA diète 2 litres plastique",null,null,3.29,0]
["COCA-COLA diète 500ml plastique",null,null,2.29,0]
["COCA-COLA Énergy 310ml can",null,null,2.99,0]
["COCA-COLA zéro sucre 2 litres plastique",null,null,3.29,0]
["COCA-COLA zéro sucre 500ml plastique",null,null,2.29,0]
["CRUSH ORANGE","1 X 591ML Platique",null,2.4900000000000002,0]
["CRUSH ORANGE","1X Can 355ML",null,1.19,0]
["CRUSH ORANGE","12 Can 355ml",null,6.49,0]
["CRUSH ORANGE","2L ",null,3.29,0]
["CRUSH RAISIN","1 X 591ML Platique",null,2.4900000000000002,0]
["CRUSH SODA MOUSSE","1 X 591ML Platique",null,2.4900000000000002,0]
["CRUSH SODA MOUSSE","1X Can 355ML",null,1.19,{"$f":"C61*D61","v":0}]
["CRUSH SODA MOUSSE","12 Can 355ml",null,6.49,0]
["CRUSH SODA MOUSSE","2L ",null,3.29,0]
["DR PEPPER","473ML CN 1/12 (Q)",null,1.89,0]
["DR PEPPER","591ML PL 1/24 (Q)",null,2.4900000000000002,0]
["MOUNTAIN DEW","1X 473ml",null,2.79,0]
["MOUNTAIN DEW","1X 591ml",null,2.4900000000000002,0]
["MOUNTAIN DEW BAJA BLAST","1X 591ml",null,2.4900000000000002,0]
["MOUNTAIN DEW VOLTAGE","1X 591ml",null,2.4900000000000002,0]
["MTN DEW KICK START MANGUE LIME","1X 473ml",null,2.79,0]
["MTN DEW KICK START ORANGE","1X 473ml",null,2.79,0]
["MTN DEW KICK START PUNCH FRUIT","1X 473ml",null,2.79,0]
["MTN DEW KICK START RAISIN","1X 473ml",null,2.79,0]
["MUG ROOT BEER","591ML PL 1/24 (Q)",null,2.4900000000000002,0]
["PEPSI","1 X 591ML Platique",null,2.4900000000000002,0]
["PEPSI","1X Can 355ML",null,1.19,0]
["PEPSI","12 Can 355ml",null,6.49,0]
["PEPSI","2L ",null,3.29,0]
["PEPSI  ZÉRO CALORIE (MAX)","1 X 591ML Platique",null,2.4900000000000002,0]
["PEPSI DIÈTE","1 X 591ML Platique",null,2.4900000000000002,0]
["PEPSI DIÈTE","1X Can 355ML",null,1.19,0]
["PEPSI DIÈTE","12 Can 355ml",null,6.49,0]
["PEPSI DIÈTE","2L ",null,3.29,0]
["SCHWEPPES GINGER ALE","591ML PL 1/24 (Q)",null,2.4900000000000002,0]
["SPRITE 2 litres plastique",null,null,3.29,0]
["SPRITE 500ml plastique",null,null,2.29,0]
[]
["Bubly - Arto"]
["Eau Bubly Cerise 1X473ml",null,null,1.99,{"$f":"C89*D89","v":0}]
["Eau Bubly Citron 1X473ml",null,null,1.99,0]
["Eau Bubly Pamplemouse 1X473ml",null,null,1.99,0]
["EAU ARTO","1X 700ML",null,2.59,{"$f":"C92*D92","v":0}]
[]
["FRAPPUCCINO 1x 405ML",null,null,null,0]
["FRAPPUCCINO CARAMEL",null,null,3.05,0]
["FRAPPUCCINO MOKA",null,null,3.05,0]
["FRAPPUCCINO VANILLE",null,null,3.05,0]
[null,null,null,null,0]
["The Glacé"]
["LIPTON PURE LEAF FRAMBOISE","1X 547ML",null,2.79,0]
["Nestea citron 500ml",null,null,2.4900000000000002,{"$f":"C101*D101","v":0}]
["PEACE TEA FIZZ Cerise coquine 695ml can",null,null,2.19,{"$f":"C102*D102","v":0}]
["PEACE TEA FIZZ Pêche 695ml can",null,null,2.19,{"$f":"C103*D103","v":0}]
["PEACE TEA FIZZ Thé vert/mangue 695ml can",null,null,2.19,{"$f":"C104*D104","v":0}]
["PEACE TEA FIZZ Fruisquet 695ml can",null,null,2.19,{"$f":"C105*D105","v":0}]
[]
["Gatorade 710ml - 950ml - 591ml",null,null,null,0]
["ARTIC FROST (TURQUOISE)","1X 710 ml",null,2.79,0]
["GATORADE CERISE GLACIALE","1X 710 ml",null,2.79,0]
["GATORADE CITRON-LIME","1X 710 ml",null,2.79,{"$f":"C110*D110","v":0}]
["GATORADE FRAISE-LIMONADE","1X 710 ml",null,2.79,0]
["GATORADE FRAMBOISE BLEUE","1X 710 ml",null,2.79,0]
["GATORADE G2 BLEUET POMMEGRENADE","1X 710 ml",null,2.79,0]
["GATORADE G2 RAISIN","1X 710 ml",null,2.79,0]
["GATORADE ORANGE","1X 710 ml",null,2.79,0]
["GATORADE POMME VERTE","1X 710 ml",null,2.79,0]
["GATORADE PUNCH AUX FRUITS","1X 710 ml",null,2.79,0]
["GLACIER FRAIS (BLEU PALE)","1X 710 ml",null,2.79,0]
["GLACIER STROM (ROSE)","1X 710 ml",null,2.79,0]
["GATORADE ARTIC FROST (TURQUOISE)","1X 950 ml",null,3.29,0]
["GATORADE CERISE GLACIALE (BLANC)","1X 950 ml",null,3.29,0]
["GATORADE FRAMBOISE BLEUE","1X 950 ml",null,3.29,0]
["GATORADE GLACIER FRAIS(BLEU PALE)","1X 950 ml",null,3.29,0]
["GATORADE GLACIER STROM (ROSE)","1X 950 ml",null,3.29,0]
["GATORADE ORANGE","1X 950 ml",null,3.29,0]
["GATORADE PUNCH AUX FRUITS","1X 950 ml",null,3.29,0]
["GATORADE RAISIN FRAIS ","1X 950 ml",null,3.29,0]
["GATORADE G2 ORANGE","1X 591 ml",null,2.69,0]
["GATORADE G2 PUNCH AUX FRUITS","1X 591 ml",null,2.69,0]
["GATORADE G2 RAISIN","1X 591 ml",null,2.69,0]
["GATORADE G2 RAISIN","1X 591 ml",null,2.69,0]
["GATORADE G2 RAISIN","1X 591 ml",null,2.69,0]
["GATORADE G2 BLEUET POMMEGRENADE","1X 591 ml",null,2.69,0]
[]
["Powerade"]
["POWERADE Mel.Baie 710ml",null,null,2.79,{"$f":"C136*D136","v":0}]
["POWERADE Mel.Baie 710ml",null,null,2.79,0]
["POWERADE Punch 710ml",null,null,2.79,0]
["POWERADE Orange 710ml",null,null,2.79,0]
["POWERADE Melon-ananas 710ml",null,null,2.79,0]
["POWERADE Raisin 710ml",null,null,2.79,0]
[null,null,null,null,0]
["Boisson Energisante",null,null,null,0]
["RedBull 250ml",null,null,2.99,0]
["RedBull 355ml",null,null,3.95,0]
["RedBull 473ml",null,null,4.3899999999999997,0]
["RedBull Sans-Sucre 473ml",null,null,3.95,0]
["AMP FOCUS BERRY (BLEU)","473ML CN 1/12 (Q)",null,2.99,{"$f":"C148*D148","v":0}]
["AMP POWER AGRUMES (VERT)","473ML CN 1/12 (Q)",null,2.99,0]
["Full throttle Citron 473ml",null,null,3.55,0]
["MONSTER  Bleu 473ml",null,null,3.55,0]
["MONSTER  Coffee 405ml",null,null,3.49,0]
["MONSTER  Coffee Moka 405ml",null,null,3.49,0]
["MONSTER  Coffee vanille 405ml",null,null,3.49,0]
["MONSTER  Énergy Zero 473ml",null,null,3.55,0]
["MONSTER  Khaos 473ml",null,null,3.55,0]
["MONSTER  Punch 473ml",null,null,3.55,0]
["MONSTER  Ultra Bl 473ml",null,null,3.55,0]
["MONSTER  Ultra Rouge 473ml",null,null,3.55,0]
["MONSTER  Vert Energy 473ml",null,null,3.55,0]
["MONSTER  Vert Energy 710ml",null,null,3.99,0]
["MONSTER  Zero cal. 473ml",null,null,3.55,0]
["MONSTER Assault 473ml",null,null,3.55,0]
["MONSTER Ultra sunrise 473ml",null,null,3.55,0]
["NOS 473ml",null,null,3.55,0]
["NOS Bleu 710ml",null,null,3.99,0]
["NOS Raisin 473ml",null,null,3.55,0]
["ROCKSTAR BLACK CHERRY","1 X 473ml Can",null,3.25,0]
["ROCKSTAR BLACKOUT","1 X 473ml Can",null,3.25,0]
["ROCKSTAR BURNER","1 X 473ml Can",null,3.25,0]
["ROCKSTAR ENERGY ","1 X 473ml Can",null,3.25,0]
["ROCKSTAR PUNCH","1 X 473ml Can",null,3.25,0]
["ROCKSTAR PUREZERO MANDARINE","1 X 473ml Can",null,3.25,0]
["ROCKSTAR PUREZERO MELON","1 X 473ml Can",null,3.25,0]
["ROCKSTAR PUREZERO PUNCH","1 X 473ml Can",null,3.25,0]
["ROCKSTAR PUREZERO RAISIN","1 X 473ml Can",null,3.25,0]
["ROCKSTAR PUREZERO SILVER ICED","1 X 473ml Can",null,3.25,0]
["ROCKSTAR RECOVERY (JAUNE)","1 X 473ml Can",null,3.25,0]
["ROCKSTAR RECOVERY ORANGE","1 X 473ml Can",null,3.25,0]
["ROCKSTAR REVOLT FRAMBOISE BLEUE","1 X 473ml Can",null,3.25,0]
["ROCKSTAR REVOLT RAISIN","1 X 473ml Can",null,3.25,0]
["ROCKSTAR ROASTED MOKA","1 X 473ml Can",null,3.25,0]
["ROCKSTAR ROASTED VANILLE","1 X 473ml Can",null,3.25,0]
["ROCKSTAR SANS SUCRE ","1 X 473ml Can",null,3.25,0]
["ROCKSTAR SUPER SOUR FRAISE","1 X 473ml Can",null,3.25,0]
["ROCKSTAR SUPER SOUR ORANGE","1 X 473ml Can",null,3.25,0]
["ROCKSTAR SUPER SOUR POMME VERTE","1 X 473ml Can",null,3.25,0]
["ROCKSTAR XD BARBE A PAPA","1 X 473ml Can",null,3.25,0]
["ROCKSTAR XD FRAMBOISE BLEUE","1 X 473ml Can",null,3.25,0]
["ROCKSTAR XD GUIMAUVE","1 X 473ml Can",null,3.25,0]
["ROCKSTAR XD POMME VERTE","1 X 473ml Can",null,3.25,0]
[]
["MUSCLE MILK 1X 414ml",null,null,null,{"$f":"C193*D193","v":0}]
["MUSCLE MILK BANANE",null,null,3.99,{"$f":"C194*D194","v":0}]
["MUSCLE MILK CHOCOLAT",null,null,3.99,{"$f":"C195*D195","v":0}]
["MUSCLE MILK VANILLE PRO 40",null,null,3.99,{"$f":"C196*D196","v":0}]
[null,null,"Sous-total :",null,{"$f":"SUM(E5:E196)","v":0}]

{"sheet":"Friandises","index":11,"n_rows":201,"n_cols":11,"rows_kept":201,"cut":false,"hidden":false,"merged":[[200,2,200,3]]}
["La Calvette, Magasin Général de Landrienne, 819-727-9559"]
["Le prix inscrit est une indication que nous essayons de respecter, mais nous devons nous ajuster aux fluctuations au jour le jour."]
["Desription #1","Desription #2","Qté","Prix","Total",null,null,null,null,null,"Qté"]
["Pop Corn frais La Calvette"]
["Pop Corn frais La Calvette",null,null,1.74,{"$f":"D5*C5","v":0}]
[]
["CHIPS PRINGLE",null,null,null,0]
["Original 148gr",null,null,3.79,0]
["BBQ 156gr",null,null,3.79,0]
["Ketchup 156gr",null,null,3.79,0]
["Sel et Vinaigre 156gr",null,null,3.79,0]
[]
["CHIPS FRITO LAY"]
["Cheetos croquant 310gr",null,null,4.1900000000000004,0]
["Cheetos soufflés 280gr",null,null,4.1900000000000004,0]
["Chester's au fromage 150gr",null,null,2,0]
["Chester's Nature 150gr",null,null,2,0]
["Doritos BBQ 255gr",null,null,4.1900000000000004,0]
["Doritos Fromage Nacho 255gr",null,null,4.1900000000000004,0]
["Doritos Fromage Nacho 255gr",null,null,4.1900000000000004,0]
["Lay's BBQ 180gr",null,null,3.29,0]
["Lay's Ketchup 180gr",null,null,3.29,0]
["Lay's Nature 180gr",null,null,3.29,0]
["Lay's Sel & Vinaigre 180gr",null,null,3.29,0]
["Lay's Stax BBQ 163gr",null,null,2.29,0]
["Lay's Stax Cheddar 163gr",null,null,2.29,0]
["Lay's Stax Original 163gr",null,null,2.29,0]
["Lay's Stax Sel et Vinaigre 163gr",null,null,2.29,0]
["Miss Vickie's Nature 200gr",null,null,4.1900000000000004,0]
["Miss Vickie's Sel & Vinaigre 200gr",null,null,4.1900000000000004,0]
["Ruffles Assaisonnées 200gr",null,null,3.99,0]
["Ruffles BBQ 200gr",null,null,3.99,0]
["Ruffles Crème sure et oignon 200gr",null,null,3.99,0]
["Ruffles Nature 200gr",null,null,3.99,0]
["Sauce Ruffles Trempette d'oignon 425g",null,null,4.29,0]
["Sauce Ruffles Trempette Ranch 425g",null,null,4.29,0]
["Sauce Tostitos Salsa Douce 418ml",null,null,4.29,{"$f":"D37*C37","v":0}]
["Sauce Tostitos Salsa Médium 418ml",null,null,4.29,0]
["Sauce Tostitos Sauce au fromage 418ml",null,null,4.29,0]
["Tostitos Scoops 215gr",null,null,3.89,0]
[]
["CHIPS OLD DUTCH",null,null,null,0]
["Arriba Fromage Nacho 245gr",null,null,3.99,0]
["Humpty Dumpty Baton.Fromage 265gr",null,null,3.99,0]
["Humpty Dumpty Cruncheez 290gr",null,null,3.99,0]
["Humpty Dumpty Ringolos BBQ 280gr",null,null,3.99,0]
["Old Dutch BBQ 180gr",null,null,3.99,0]
["Old Dutch Ketchup 180gr",null,null,3.99,0]
["Old Dutch Nature 180gr",null,null,3.99,0]
["Old Dutch Rip-L 180gr",null,null,3.99,0]
["Old Dutch Rip-L Légèrement salées 180gr",null,null,3.99,0]
["Old Dutch Sel & Vinaigre 180gr",null,null,3.99,0]
[]
["CHOCOLAT RÉGULIER",null,null,null,0]
["Aero",null,null,1.59,0]
["Aero Menthe",null,null,1.59,0]
["Aero Noir",null,null,1.59,0]
["After Eight",null,null,1.59,0]
["Bounty",null,null,1.59,0]
["Caramilk",null,null,1.59,0]
["Cherry Blossom",null,null,1.59,0]
["Chunly Car",null,null,1.59,0]
["Coffee Crisp",null,null,1.59,0]
["Crunchie",null,null,1.59,0]
["Dairy Milk",null,null,1.59,0]
["Glosette Amande",null,null,1.59,0]
["Glosette Raisin",null,null,1.59,0]
["Hershey Creme",null,null,1.59,0]
["Hershey Gold",null,null,1.59,{"$f":"D69*C69","v":0}]
["Hershey Lait",null,null,1.59,0]
["Kit Kat",null,null,1.59,0]
["Malterress",null,null,1.59,0]
["Mars",null,null,1.59,0]
["Mars Noir",null,null,1.59,0]
["Mirage",null,null,1.59,0]
["Mr. Big",null,null,1.59,0]
["Œuf Cadbury",null,null,1.95,0]
["Œuf Kinder       ",null,null,1.95,0]
["Œuf Kinder Fille",null,null,1.95,0]
["Oh Henry",null,null,1.59,0]
["Reese Extrav.",null,null,1.59,0]
["Reese Reg",null,null,1.59,0]
["Rocher",null,null,1.59,0]
["Rolo ",null,null,1.59,0]
["Smarties",null,null,1.59,0]
["Snickers",null,null,1.59,0]
["Turtle 3 mcx",null,null,1.59,0]
["Wunderbar ",null,null,1.59,0]
["Chocolat en barre M&M",null,null,3.79,0]
["M&M Chocolat au lait 120gr",null,null,3.99,0]
[]
["MARCHAND",null,null,null,{"$f":"D92*C92","v":0}]
["Macarons au chocolat 300gr Marchand",null,null,3.99,0]
["Chocolat Arc-en-ciel Yummies 300gr Marchand",null,null,4.49,0]
[]
["GOMME Dentine Ice",null,null,null,0]
["Avalance",null,null,1.35,0]
["Fire canelle",null,null,1.35,0]
["Frisson",null,null,1.35,0]
["Intense",null,null,1.35,0]
["Menthe poivré",null,null,1.35,0]
["Menthe verte",null,null,1.35,0]
["Minuit",null,null,1.35,0]
["Menthe Iceberg",null,null,1.35,0]
["Menthe Glacière",null,null,1.35,0]
[]
["GOMME autre",null,null,null,{"$f":"D107*C107","v":0}]
["Trident Mel-Fra - Splash",null,null,1.35,0]
["Doublement Wrigley",null,null,1.89,0]
[]
["GOMME Excel",null,null,null,0]
["Inferno Canelle",null,null,1.55,0]
["Polar Ice",null,null,1.55,0]
["Spearmint Verte",null,null,1.55,0]
["Strong Menthe",null,null,1.55,0]
["Winteerfresh Glacé",null,null,1.55,0]
["Menthe S.Sucre Bleu",null,null,1.55,0]
["Balloune",null,null,1.55,0]
["Chlorophyle",null,null,1.55,0]
[]
["Juicy Fruit",null,null,null,0]
["Juicy F. Balloune",null,null,1.29,0]
["Juicy F.  Or.",null,null,1.77,0]
["Juicy F. Bout Tend",null,null,2.29,0]
["Trident Splash ",null,null,1.45,0]
["Excel (petite menthe)",null,null,1.49,{"$f":"D126*C126","v":0}]
[]
["Bubblicious",null,null,null,0]
["Raisin",null,null,0.99,0]
["Hubbahubba Max",null,null,1.19,0]
[]
["GOMME en Bouteille ",null,null,null,0]
["Menthe Polaire",null,null,5.35,0]
["Menthe Verte",null,null,5.35,0]
["Juicy Fruit",null,null,5.35,0]
["Juicy Fruit Mix",null,null,5.35,0]
["Trident Vibe",null,null,4.95,0]
["Dentyne Fire",null,null,4.49,0]
["Vibe Trop.",null,null,4.95,0]
["Vibe Menthe Poiv",null,null,4.95,0]
[]
["BONBONS ",null,null,null,0]
["Skittles Sucré et Sure 191gr",null,null,4.1900000000000004,0]
["Skittles Baie 191gr",null,null,4.1900000000000004,0]
["Skittles Fruits Tropicaux 191gr",null,null,4.1900000000000004,0]
["Skittles Originaux 191gr",null,null,4.1900000000000004,0]
[]
["Gros Sac Bonbon Sweet Sixteen 400g Mondoux",null,null,null,0]
["Bonbon Sac Original Sixteen 400gr",null,null,5.19,0]
["Bonbon Sac Gummy Sweet Sixteen 400gr ",null,null,5.19,0]
["Bonbon Sac Réglisse Sweet Sixteen 400gr ",null,null,5.19,0]
["Bonbon Sac Sucré/Surette Sweet Sixteen 400gr ",null,null,5.19,0]
[]
["Bonbon Gobelet 175g Mondoux",null,null,null,0]
["Bonbon gummy gobelet 3d Ours gel",null,null,3.49,0]
["Bonbon gummy gobelet Anneau pêche ",null,null,3.49,0]
["Bonbon gummy gobelet Brique 6 couleurs ",null,null,3.49,0]
["Bonbon gummy gobelet Chips A/E/C ",null,null,3.49,{"$f":"D158*C158","v":0}]
["Bonbon gummy gobelet Fraise sauvage ",null,null,3.49,0]
["Bonbon gummy gobelet Framboise lunaire ",null,null,3.49,0]
["Bonbon gummy gobelet Framboise rouge",null,null,3.49,0]
["Bonbon gummy gobelet Grenouille ",null,null,3.49,0]
["Bonbon gummy gobelet Jujube mix",null,null,3.49,0]
["Bonbon gummy gobelet Mélange surette ",null,null,3.49,0]
["Bonbon gummy gobelet Pied rouge ",null,null,3.49,0]
["Bonbon gummy gobelet Réglisse ass. ",null,null,3.49,0]
["Bonbon gummy gobelet Suce surette ",null,null,3.49,0]
["Hosties  Regal 100un",null,null,1.25,0]
[]
["Confiserie Abitibi Bonbon",null,null,null,0]
["Ceintures Néon (Réglisse plate) 150gr Conf.Abitibi",null,null,2.99,0]
["Clés sures 160gr Conf.Abitibi",null,null,2.99,0]
["Invasion de fruit 190gr Conf.Abitibi",null,null,2.99,0]
["Mûres Suédoises 190gr Conf.Abitibi",null,null,2.99,0]
["Nombrils 180gr Conf.Abitibi",null,null,2.99,0]
["Réglisse crème Rouge ou bleu 150gr Conf.Abitibi",null,null,2.99,0]
["Roches sures 180gr Conf.Abitibi",null,null,2.99,0]
[]
["Pastilles Halls"]
["Bleu Lyptus",null,null,1.75,{"$f":"C180*D180","v":0}]
["Centre cerise",null,null,1.75,0]
["Cerise",null,null,1.75,0]
["Cerise noir",null,null,1.45,0]
["Cerise Noir S-Sucre",null,null,1.45,0]
["Extra-Fort",null,null,1.75,0]
["Mentho-Lyp ment vert",null,null,1.75,0]
["Vitamine C Agrum  S-S",null,null,1.75,0]
["Vitamine C Agrum Ass",null,null,1.75,0]
["Vitamine C Grena-Agrum",null,null,1.75,0]
[]
["Pastilles Fisherman"]
["Agrume",null,null,2.29,{"$f":"C192*D192","v":0}]
["Cesise S.Sucre",null,null,2.29,{"$f":"C193*D193","v":0}]
["Extra Fort",null,null,2.29,{"$f":"C194*D194","v":0}]
["Menthe",null,null,2.29,{"$f":"C195*D195","v":0}]
["Reg",null,null,2.29,{"$f":"C196*D196","v":0}]
[]
["Pastilles Vick's"]
["Cerise",null,null,1.19,{"$f":"C199*D199","v":0}]
["Orange",null,null,1.19,{"$f":"C200*D200","v":0}]
[null,null,"Sous-total :",null,{"$f":"SUM(E5:E200)","v":0}]

{"sheet":"Noix +Pepper.","index":12,"n_rows":26,"n_cols":11,"rows_kept":26,"cut":false,"hidden":false,"merged":[[25,2,25,3]]}
["La Calvette, Magasin Général de Landrienne, 819-727-9559"]
["Le prix inscrit est une indication que nous essayons de respecter, mais nous devons nous ajuster aux fluctuations au jour le jour."]
["Desription #1","Desription #2","Qté","Prix","Total",null,null,null,null,null,"Qté"]
["Noix"]
["Graine de tournesol Assais. 210gr Spritz",null,null,2.4900000000000002,{"$f":"D5*C5","v":0}]
["Graine de tournesol Salées 210gr Spritz",null,null,2.4900000000000002,0]
["Graine de tournesol Corn. aneth 210gr Spritz",null,null,2.4900000000000002,0]
["Graine de tournesol Au poivre 210gr Spritz",null,null,2.4900000000000002,0]
["Noix d'acajous salés 90gr Conf.Abitibi",null,null,3.99,0]
["Noix d'acajous BBQ 90gr Conf.Abitibi",null,null,3.99,0]
["Amandes fumées 140gr Conf.Abitibi",null,null,3.99,0]
["Arachides BBQ 160gr Conf.Abitibi",null,null,1.99,0]
["Menthes Roses 140gr Conf.Abitibi",null,null,1.99,0]
[null,null,null,null,0]
["Pepperette",null,null,null,0]
["Pepperoni mini Doux 250gr Mondoux",null,null,9.99,0]
["Pepperoni mini Piquant 260gr Mondoux",null,null,9.99,0]
["Pepperette Doux 10un Conf.Abitibi",null,null,9.99,0]
["Pepperette Fort 10un Conf.Abitibi",null,null,9.99,0]
["Pepperette Fort 911 10un Conf.Abitibi",null,null,9.99,0]
["Pepperette Miel & Ail 10un Conf.Abitibi",null,null,9.99,0]
["Pepperette Pepperoni 10un Conf.Abitibi",null,null,9.99,0]
["Pepperette Teriyaki 10un Conf.Abitibi",null,null,9.99,0]
["Pepperette Sriracha 10un Conf.Abitibi",null,null,9.99,0]
["Pepperette Salami 10un Conf.Abitibi",null,null,9.99,0]
[null,null,"Sous-total :",null,{"$f":"SUM(E5:E25)","v":0}]

{"sheet":"Bières+Alcomalts","index":13,"n_rows":174,"n_cols":5,"rows_kept":174,"cut":false,"hidden":false,"merged":[[173,2,173,3]]}
["La Calvette, Magasin Général de Landrienne, 819-727-9559"]
["Le prix inscrit est une indication que nous essayons de respecter, mais nous devons nous ajuster aux fluctuations au jour le jour."]
["Desription #1","Desription #2","Qté","Prix","Total"]
["Biere+Alcomalt"]
["Belgian Mangue","Can 473ml ",null,3.49,{"$f":"C5*D5","v":0}]
["Belgian Moon","Can 473ml ",null,3.49,0]
["Belgian Moon","12 Can X 355ml",null,17.989999999999998,0]
["Black Label","Cane 710ml ",null,3.25,0]
["Black Label","20 Can",null,26.99,0]
["Black Label","30 Can ",null,37.99,0]
["Black Label","12 Bout",null,15.99,0]
["Black Label","4X6 Can",null,8.99,0]
["Black Label","12 Can X 355ml",null,15.99,0]
["Black Label Dry","4X6 Can",null,8.99,0]
["Labatt Bleu","12 Can X 355ml",null,18.989999999999998,0]
["Bud Light","4X6 Can",null,11.99,0]
["Bud Light","Can 473ml ",null,3.19,0]
["Bud Light","12 Can X 355ml",null,18.989999999999998,0]
["Bud Light","30 Can ",null,40.99,0]
["Bud Light ","Cane 710ml ",null,4.49,0]
["Bud Light Pample.","Can 473ml ",null,3.39,0]
["Bud Lime ","12 Bout",null,19.989999999999998,0]
["Bud Lime ","12 Can X 355ml",null,19.989999999999998,0]
["Bud Prohibition","Can 473ml ",null,3.49,0]
["Bud Prohibition","12 Can X 355ml",null,15.99,0]
["Budweiser","Can 473ml ",null,3.19,0]
["Budweiser","4X6 Can",null,11.99,0]
["Budweiser","12 Can X 355ml",null,18.989999999999998,0]
["Budweiser","Cane 710ml ",null,4.25,0]
["Budweiser","30 Can",null,40.99,0]
["Molson Canadian","20 Can",null,27.99,0]
["Molson Canadian","30 Can",null,38.99,0]
["Molson Canadian","Can 473ml ",null,3.25,0]
["Molson Canadian","12 Can X 355ml",null,16.989999999999998,0]
["Clamato Chela","4X6 Can",null,13.99,0]
["Clamato Chela","12 Can X 355ml",null,21.99,{"$f":"C36*D36","v":0}]
["Coors","4X6 Can",null,9.99,0]
["Coors","12 Can X 355ml",null,16.989999999999998,0]
["Coors","20 Can",null,26.99,0]
["Coors","30 Can ",null,36.99,0]
["Coors","36 Can",null,43.99,0]
["Coors ","Cane 710ml ",null,4.05,0]
["Coors (10)","Can 473ml ",null,3.25,0]
["Coors Edge 5%","12 Can X 355ml",null,16.989999999999998,0]
["Corona","12 Bout",null,22.49,0]
["Corona Light","12 Bout",null,22.49,0]
["Corona Sleek","12 Can X 355ml",null,22.99,0]
["Heineken","12 Can X 355ml",null,21.99,0]
["Heineken 1x12","12 Bout",null,22.99,0]
["Heineken 500","Can 500ml ",null,3.89,0]
["Labbat '50 ","12 Can X 355ml",null,18.989999999999998,0]
["Mad Jack Pomme","Can 473ml ",null,3.59,0]
["Mad Jack Punch","Can 473ml ",null,3.59,0]
["Madjack Pomme","12 Can X 355ml",null,20.99,0]
["Molson Dry","4X6 Can",null,9.99,0]
["Molson Dry","Can 473ml ",null,3.25,0]
["Molson Dry","12 Can X 355ml",null,16.989999999999998,0]
["Molson Dry","Cane 710ml ",null,4.05,0]
["Molson Dry","20 Can",null,27.99,0]
["Molson Dry","30 Can ",null,38.99,0]
["Molson Ex","Can 473ml ",null,3.25,0]
["Molson Ex","30 Can ",null,38.99,0]
["Molson Export","12 Can X 355ml",null,16.989999999999998,0]
["Molson Export","20 Can",null,27.99,0]
["Molson Ultra","12 Can X 355ml",null,19.989999999999998,0]
["Pabs 5.9 % 12 Can","12 Can X 355ml",null,14.99,0]
["Pabs Light 4% 6 CanX","4X6 Can",null,6.99,0]
["Pabst 12 Cans","12 Can X 355ml",null,14.99,{"$f":"C68*D68","v":0}]
["Pabst 6 Cans","4X6 Can",null,6.99,0]
["Rickard's Red","12 Can X 355ml",null,16.989999999999998,0]
["Sleeman 12 Can Selec","12 Can X 355ml",null,16.989999999999998,0]
["Sleeman Clear 12 cans","12 Can X 355ml",null,16.989999999999998,0]
["Sleeman Clear 20 Can","20 Can",null,24.99,0]
["Sleeman Drauht 12 can","12 Can X 355ml",null,16.989999999999998,0]
["Sleeman Ipa 12 can","12 Can X 355ml",null,16.989999999999998,0]
["Sleeman Light - 12 Can","12 Can X 355ml",null,16.989999999999998,0]
[]
["Prospecteur 950ml"]
["Tête de Pioche",null,null,11.75,{"$f":"C79*D79","v":0}]
["Blanche",null,null,10.75,{"$f":"C80*D80","v":0}]
["Blonde",null,null,10.75,0]
["Rousse",null,null,10.75,0]
["Noire",null,null,10.75,0]
[]
["Microbrasserie"]
["A tout le Monde - 12 Bout",null,null,17.989999999999998,0]
["A tout le Monde - 1X 473ml",null,null,3.79,0]
["A tout le Monde - 4X 473ml",null,null,11.99,0]
["Autre Chose IPA 4X473 ml",null,null,12.99,0]
["Autre Chose Ses Ale 1X 473ml",null,null,3.79,0]
["Autre Chose Ses Ale 4X 473ml",null,null,12.99,0]
["Autrechose IPA Can 1 X 473ml",null,null,3.79,0]
["Blanche Chambly 1X473ml",null,null,3.49,0]
["Blanche Chambly 4X473ml",null,null,12.99,0]
["Blanche de Chamby -",null,null,17.989999999999998,0]
["Éphémère Cassis 6 Bout","6 Bouteilles",null,11.99,0]
["Éphémère Pommes 6 Bout","6 Bouteilles",null,11.99,0]
["GIB Eng Bay Ale","Can 1X473ml",null,3.29,0]
["GIB Eng Bay Ale","Can 4X473ml",null,12.99,0]
["Gib Wescost IPA","Can 1X473ml",null,3.29,0]
["Gib Wescost IPA","Can 4X473ml",null,12.99,0]
["Grand Ville  Nortwest","Can 1X473ml",null,3.29,0]
["Grand Ville  Nortwest","Can 4X473ml",null,12.99,0]
["L'Amer IPA","Can 1X473ml",null,3.29,0]
["L'Amer IPA","Can 4X473ml",null,12.99,0]
["Saison 13 Megadeth 1x473ml",null,null,3.79,0]
["Saison 13 Megadeth 4x473ml",null,null,12.99,{"$f":"C107*D107","v":0}]
["Unibroue Collection 12 Bout",null,null,17.989999999999998,0]
[]
["Troue Du Diable Bout 600ml"]
["La saison du tracteur",null,null,5.89,0]
["La Blanche de Shawi",null,null,6.59,0]
["La Pitoune",null,null,5.89,0]
[]
["Troue Du Diable Bout 750ml"]
["Dulci Succubus",null,null,19.989999999999998,0]
["L'ours",null,null,16.190000000000001,0]
[]
["Troue Du Diable Bout 473ml"]
["L'Apocalypso","Can 1X473ml",null,4.49,0]
["L'Apocalypso","Can 4X473ml",null,15.99,0]
["Mactavish","Can 1X473ml",null,3.89,0]
["Mactavish","Can 4X473ml",null,14.99,0]
["Shawibeach","Can 1X473ml",null,4.49,0]
["Shawibeach","Can 4X473ml",null,15.99,0]
["Superpils","Can 1X473ml",null,3.89,0]
["Superpils","Can 4X473ml",null,14.99,0]
[]
["La Bit à Tibi Can 568ml"]
["White",null,null,2.99,0]
["Blonde",null,null,2.99,0]
["Pale",null,null,2.99,0]
[]
["Alcomalt"]
["Palm Bay 12Can","12 Can 1X12",null,20.49,0]
[]
["Palm Bay 1X 473ml"]
["Anana+Mandarine",null,null,3.95,0]
["Anana+Fraise",null,null,3.95,{"$f":"C139*D139","v":0}]
[]
["Beach Bay 1X 473ml"]
["Punch fruit",null,null,3.95,0]
["Agrume",null,null,3.95,0]
[]
["Palm Bay 4X6 can"]
["Anana+Mandarine",null,null,13.99,0]
["Fraise + Anana",null,null,13.99,0]
["Mangue",null,null,13.99,0]
[]
["Smirnoff Ice Can 1X 473m"]
["Smirnoff Ice Can 473m",null,null,3.29,0]
["Smirnoff Enc. Berry ",null,null,3.29,0]
["Smirnoff Sangria Roug",null,null,3.29,0]
["Smirnoff Sangria Blanc",null,null,3.29,0]
["Smirnoff Fusion Cit+Li",null,null,3.29,0]
["Smirnoff Fus Cer+lim 4",null,null,3.29,0]
[]
["Smirnoff Ice Can 6X 355m"]
["Smirnoff Enc Framb 6",null,null,12.99,0]
["Smirnoff Enc Fram 6 C",null,null,12.99,0]
["Smirnoff Ice Framb 6x3",null,null,12.99,0]
["Smirnoff Ice Enc. Pech",null,null,12.99,0]
["Smirnoff Ice Baies Sau",null,null,12.99,0]
["Smirnoff Ice Melon d'e",null,null,12.99,0]
["Smirnoff Ice Enc. Or. -",null,null,12.99,0]
[]
["Poppers 1X 473ml"]
["Popper Ice Rocket 473ml",null,null,3.29,0]
["Popper Hard Ice 473ml",null,null,3.29,0]
["Breezer Bacardie Fraise 473 ml ",null,null,3.29,0]
["Breezer Bacardie Ananas 473 ml ",null,null,3.29,{"$f":"C171*D171","v":0}]
["ClubTails Colada 1 X473ml",null,null,3.29,0]
["ClubTails Margarita 1 X473ml",null,null,3.29,0]
[null,null,"Sous-total :",null,{"$f":"SUM(E5:E173)","v":0}]

{"sheet":"Pharm+Pr.Ménager","index":14,"n_rows":87,"n_cols":5,"rows_kept":87,"cut":false,"hidden":false,"merged":[[86,2,86,3]]}
["La Calvette, Magasin Général de Landrienne, 819-727-9559"]
["Le prix inscrit est une indication que nous essayons de respecter, mais nous devons nous ajuster aux fluctuations au jour le jour."]
["Desription #1","Desription #2","Qté","Prix","Total"]
["Pharmacie"]
["Absorbine",null,null,6.19,{"$f":"C5*D5","v":0}]
["Alcool 50%",null,null,2.4900000000000002,0]
["Antiphlo avec odeur",null,null,10.957142857142857,0]
["Antiphlo Sans Odeur",null,null,18.042857142857144,0]
["Aspirine",null,null,3.99,0]
["Biberon Platex",null,null,6.89,0]
["Condom Lub Lyfe style",null,null,2.02,0]
["Condom Trojan",null,null,3.69,0]
["Gravol",null,null,8.59,0]
["Lames de rasoir Mach3",null,null,13.29,0]
["Murine",null,null,6.27,0]
["Péroxyde",null,null,2.35,0]
["Plasteur Plastique",null,null,6.49,0]
["Plasteur Tissu",null,null,6.49,0]
["Rasoir jetable",null,null,6.09375,0]
["Robitussin Mucus",null,null,9.85,0]
["Rollaid Pqt",null,null,0.89843750000000011,0]
["Sacs de biberon",null,null,9.99,0]
["Tempra 0-2 ans",null,null,7.15,0]
["Tums",null,null,6.98,0]
["Tums Pqt",null,null,1.0737847222222221,0]
["Tylenol",null,null,5.69,0]
["Tylenol 23lb-bébé(gouttes)",null,null,11.89,0]
["Tylenol Enfant 2-11 ans Fruit",null,null,12.29,0]
["Vaseline 106g",null,null,2.99,0]
["Vicks Vapo Tub",null,null,7.15,0]
[]
["Produits pour le corps"]
["Anti-sudorifique Old Spice",null,null,5.99,{"$f":"C33*D33","v":0}]
["Anti-sudorifique Secret",null,null,3.75,0]
["Anti-sudorifique Speed Stick",null,null,4.99,0]
["Brosse à dents adulte",null,null,1.59375,0]
["Brosse à dents enfant",null,null,2.99,0]
["Coton tige",null,null,3.49,0]
["Coupe ongles",null,null,2.25,0]
["Crème à mains – Curel",null,null,5.35,0]
["Débarbouillettes humides",null,null,4.95,0]
["Fixatif Herbal Essence",null,null,5.29,0]
["Gel coiffant Herbal Essence",null,null,5.29,0]
["Lipsil Cerise.",null,null,1.6679687499999998,0]
["Lipsil Or (boite de 8)",null,null,1.6679687499999998,0]
["Mousse à raser Gilette",null,null,3.75,0]
["Mousse coiffante Herbal Essence",null,null,5.29,0]
["Revitalisant Herbal Essence",null,null,5.39,0]
["Savon en barre Dove",null,null,3.99,0]
["Savon en barre Ivory",null,null,2.7,0]
["Shampoing Finesse",null,null,5.39,0]
["Shampoing Head&Shoulder",null,null,9.49,0]
["Shampoing Herbal Essence",null,null,5.39,0]
[]
["Produits pour la maison"]
["Assouplisseur feuilles Bounce",null,null,4.890625,{"$f":"C56*D56","v":0}]
["Eau de javel Spring Time",null,null,2.13,0]
["Essuie-tout",null,null,2.99,0]
["Fantastik javel",null,null,7.05,0]
["Hertel",null,null,5.25,0]
["Laine d'acier",null,null,2.15,0]
["Lysol cuvette",null,null,5.25,0]
["M. Net agrumes",null,null,4.3899999999999997,0]
["Nettoyeur effaceur magique M.Net",null,null,3.99,0]
["Papier mouchoirs – Majesta",null,null,1.35,0]
["Papier toilette – Majesta",null,null,7.99,0]
["Papier toilette – Royal",null,null,8.59,0]
["Protège-dessous Always",null,null,7.15,0]
["Rafraîchisseur d'air Febreze",null,null,4.890625,0]
["Sac poubelle – Blanc",null,null,1.29,0]
["Sac poubelle – Bleu recyclage",null,null,16.693359375,0]
["Sac poubelle – Multichoix",null,null,2.5499999999999998,0]
["Sac poubelle – Noir ",null,null,2.4900000000000002,0]
["Sac poubelle – Orange",null,null,2.3507812499999998,0]
["Savon à linge OldOutch",null,null,4.99,0]
["Savon à linge Bio Pure 4litres",null,null,15.99,0]
["Savon lave-vaisselle Cascade",null,null,11.79,0]
["Savon vaisselle Palmolive",null,null,5.15,0]
["Serviette hygiénique nuit Always",null,null,7.486979166666667,0]
["Serviette hygiénique rég Always",null,null,7.29,0]
["Serviettes de table (cs)",null,null,2.99,0]
["Tampon à récurer- cuivre",null,null,3.09,0]
["Tampon hygiénique rég Tampax",null,null,6.99,0]
["Tampon hygiénique sup Tampax",null,null,4.1900000000000004,0]
["Tampon S.O.S",null,null,4.7890625,0]
["Windex",null,null,7.39,0]
[null,null,"Sous-total :",null,{"$f":"SUM(E5:E86)","v":0}]

{"sheet":"Vins-Spiritueux","index":15,"n_rows":135,"n_cols":5,"rows_kept":135,"cut":false,"hidden":false,"merged":[[134,2,134,3]]}
["La Calvette, Magasin Général de Landrienne, 819-727-9559"]
["Le prix inscrit est une indication que nous essayons de respecter, mais nous devons nous ajuster aux fluctuations au jour le jour."]
["Desription #1","Code SAQ","Qté","Prix","Total"]
["SPIRITUEUX"]
["Amaretto Disaronno 375 ml",31864,null,17.399999999999999,0]
["Amarula Cream boisson à la crème",342246,null,28.55,0]
["Avril amaretto",13673941,null,35.25,0]
["B52 Shots (4 x 30 ml) boisson diverse",10914738,null,10.4,0]
["Bacardi brun 8 ans",492520,null,33,0]
["Bacardi Superior rhum blanc",117,null,23.05,0]
["Baileys l'original boisson à la crème irlandaise",5959,null,30.25,0]
["Bombay Saphire Dry gin 750ml",316844,null,28,0]
["Canadian Club whisky canadien",463,null,14.2,0]
["Canadian Club whisky canadien 1,14L",11495424,null,37.25,0]
["Canadian Club whisky canadien 750 ml",42,null,24.95,0]
["Canopée Gin dry 750ml",12880851,null,35.25,0]
["Capt. Morgan Black épicé",11741390,null,30.25,0]
["Captain Morgan Original Spiced rhum 1,14 L",11584478,null,40.5,0]
["Captain Morgan Original Spiced rhum 750ml",500512,null,28.25,0]
["Captain Morgan Original Spiced rhum épicé ambré",11253695,null,15.15,0]
["Carolan's Finest boisson à la crème",623678,null,33.25,0]
["Chemineaud ***** brandy",4242,null,13.35,0]
["Chic Choc",12362674,null,34.75,0]
["Coureur des Bois boisson à la crème et au sirop d'érable",11091921,null,29.9,0]
["Coureur des Bois whisky",11724979,null,35.75,0]
["Crème de menthe blanche Meagher liqueur de menthe",196303,null,24.95,0]
["De Kuyper Genièvre 1,14 L",406,null,35.5,0]
["De Kuyper Genièvre 750 ml",1339,null,24.5,0]
["Dr McGillicuddy`s",12496541,null,20.85,0]
["Fireball Whisky liqueur diverse",10914877,null,22.9,0]
["Gauthier cognac",63461,null,44.25,0]
["Grand Marnier liqueur d'agrumes",1784,null,46.25,0]
["Henkell Trocken Piccolo mousseux",9118,null,4.2,0]
["Jack Daniel's Old No 7 375ml",119743,null,18.5,0]
["Le Coq d'Or Pineau des Charentes",24208,null,17.8,0]
["Morbleu Rhum épicé",13261664,null,35.5,0]
["Ron Bacardi rhum blanc",596,null,13.75,0]
["Ron Carioca rhum blanc 750 ml",2444,null,21.7,0]
["Saint Crème",13917766,null,34.75,0]
["Sauza Blue Silver tequila",11904435,null,34.5,0]
["Smirnoff triple distillation vodka",240,null,14.2,0]
["Smirnoff triple distillation vodka 1,14L",11584486,null,35.75,0]
["Smirnoff triple distillation vodka 750 ml",67,null,23.5,0]
["Sortilège whisky canadien et sirop d'érable",522482,null,34,0]
["Sour Push 1,14 L",10347921,null,26.95,0]
["Stinger Premixxx liqueur de menthe",12211180,null,33.5,0]
["St-Remy Authentic VSOP brandy",163519,null,36.25,0]
["Tanqueray 1,14 L  ",11447414,null,39.5,0]
["Tanqueray London dry gin 750ml",2691,null,26.95,0]
["Téquila aux fraises",10210651,null,29.95,0]
["The Kraken Black Spiced Rhum épicé",11964606,null,32,0]
["Ungava Dry Gin",11156764,null,35.75,0]
[]
["VIN BLANC"]
["Barefoot Refresh Crips White",12206647,null,11,0]
["Bottero Di Cello Bianco Veneto i.g.t.",430462,null,10.050000000000001,0]
["Cellier des Dauphins Prestige blanc",496349,null,4.5,0]
["Chardonnay Réservé Maison Nicolas (faible en glucide)",577122,null,12.45,0]
["Citra Chardonnay blanc",552513,null,9.8000000000000007,0]
["Donini Terbbiano chardonnay blanc (faible en glucide)",160317,null,9.4499999999999993,0]
["Douglas Green blanc (faible en glucide)",12698872,null,9.9499999999999993,0]
["Errazzuriz fumé blanc (faible en glucide)",541250,null,14.15,0]
["Gros Manseng/Sauvignon Brumont (faible en glucide)",548883,null,12.85,0]
["Hanns Christof Liebfraumilch Qba Rheinhessen",3269,null,11.65,0]
["Henkell Trocken mousseux",122689,null,14.7,0]
["Les petits carreaux blanc (faible en glucide)",12699040,null,10,0]
["Madria Sangria",12235510,null,10.9,0]
["Pinot grigio Barefoot California",10915010,null,10.65,0]
["Robertson Winerey chemino blanc",10754228,null,9.9,0]
["Santi Nello Pinot Grigio",12663119,null,10.45,0]
["The Grinder blanc (faible en glucide)",13487372,null,12.4,0]
["Vittori-Trebbiano (faible en glucide)",12990224,null,8.75,0]
[]
["VIN ROUGE"]
["Apothic Red Californie",11315497,null,14.95,0]
["Bottero rouge",409888,null,10.050000000000001,0]
["Cabernet/Shiraz Cliff 79 South Eastern Australia",11133036,null,10.25,0]
["Cabernet-Sauvignon Beringer Collection California",11133132,null,10.95,0]
["Cabernet-Sauvignon Trapiche",530907,null,11.25,0]
["Carnivor",11975090,null,16.95,0]
["Casa Santos Lima",12989611,null,9.75,0]
["Celeste Ribera del Duero (faible en glucide)",11741285,null,21.5,0]
["Cellier des Dauphins Prestige Côtes du Rhône",464669,null,4.5,0]
["Citra Montepulciano d'Abruzzo",103861,null,9.8000000000000007,0]
["Cliff 79 3 litres   ",11462104,null,34.65,0]
["Errazuriz Max Reserva",335174,null,18.8,0]
["Fantini",12477501,null,8.9,0]
["Grand Sud Merlot Rouge",13152142,null,11.9,0]
["Jacob`s Creek Moscato",12206891,null,13.45,0]
["La Garnotte (faible en glucide)",11374411,null,10.9,0]
["Les p'tits carreaux - Rouge",12477949,null,9.8000000000000007,0]
["Malbec Bodega Nor. Barrel Sel Mend.(faible en glucide)",860429,null,14,0]
["Malbec Finca Flichman Mendoza (faible en glucide)",10669832,null,9.9499999999999993,0]
["Malbec Reserva Nieto Senetiner Mendoza",10669883,null,13.75,0]
["Malbec Trapiche fût de chêne réserve Mendoza",430611,null,13.6,0]
["Martini Rosso vermouth",11401352,null,13.5,0]
["Ménage à Trois Folie à Deux Californie blanc",10709988,null,16.75,0]
["Ménage à Trois Folie à Deux Californie rouge",10709152,null,16.95,0]
["Merlot Donini Delle Venezie i.g.t.",160358,null,9.4499999999999993,0]
["Merlot Réserve Maison Nicolas Pays d`Oc IGP",434993,null,11.8,0]
["Merlot Vivolo di Sasso Veneto i.g.t.",485565,null,10.85,0]
["Merlot/Cabernet J.P. Chenet vin de pays d'Oc",485557,null,13.35,0]
["Modello Masi Delle Venezie i.g.t.",533026,null,13.8,0]
["Monastério de Las Vinas  (faible en glucide)",539528,null,11.55,0]
["Naturéo (sans alcool)",12773692,null,9.9499999999999993,0]
["Offley Rei tawny Porto",157438,null,15.95,0]
["Pinot grigio Voga Delle Venezie i.g.t.",10803114,null,15.05,0]
["Pinot noir De La Chevalière vin de pays d'Oc",10374997,null,13.45,0]
["Shiraz Barefoot California",10915036,null,10.65,0]
["Shiraz/Cabernet Jacob's Creek South Eastern Australia",106377,null,13.8,0]
["Smoky Bay rouge 3 litres",13958023,null,32.9,0]
["St-Georges Sélectionné vin fortifié blanc canadien",3103,null,14.5,0]
["St-Georges Sélectionné vin fortifié canadien",7286,null,14.5,0]
["St-Raphaël doré apéritif",4655,null,12.85,0]
["Vive la vie",12167211,null,9.3000000000000007,0]
["Vottori-D`Abruzzo",12990179,null,8.75,0]
["Zinfandel Barefoot Lodi Californie",11133175,null,10.65,0]
[]
["VIN ROSÉ"]
["Mateus rosé",166,null,9.75,0]
["White Zinfandel Ernest & Julio Gallo Californie rosé",285767,null,9.9499999999999993,0]
["White Zinfandel Ernest & Julio Gallo sierra valley rosé",308460,null,18.95,0]
[]
["COOLER & COCKTAIL"]
["Bacardi Breezer Ananas (4x330ml)",13336275,null,13.2,0]
["Mott's Clamato Caesar Originale (4 x 355 ml) cooler",569418,null,11.4,0]
["Mott's Clamato Caesar toute garnis",13586400,null,2.95,0]
["Palm Bay Fraise/Ananas (6X355ML) cooler au spiritueux",11687127,null,13.2,0]
["Palm Bay Lime/Cerise (6x355) canette boisson à la vodka",11687101,null,13.2,0]
["Palm Bay Pamp Rose (6x355) canette boisson vodka",11440221,null,13.2,0]
["Smirnoff 4x330ml",11927741,null,11,0]
["Smirnoff Ice (12 x 330 ml) cooler au spiritueux",11927688,null,31.8,0]
["Smirnoff Ice canette 6x355ml cooler au spiritueux",11927661,null,14.1,0]
["WKD Vodka Blue (4 x 330 ml) cooler au spiritueux",697169,null,10.8,0]
[null,null,"Sous-total :",null,{"$f":"SUM(E5:E134)","v":0}]

{"sheet":"Animaux","index":16,"n_rows":13,"n_cols":5,"rows_kept":13,"cut":false,"hidden":false,"merged":[[12,2,12,3]]}
["La Calvette, Magasin Général de Landrienne, 819-727-9559"]
["Le prix inscrit est une indication que nous essayons de respecter, mais nous devons nous ajuster aux fluctuations au jour le jour."]
["Desription #1","Desription #2","Qté","Prix","Total"]
["Nourriture animaux"]
["Chien – Goodchoice 16kg",null,null,31.6875,{"$f":"C5*D5","v":0}]
["Chien/Chiot actif – Bestchoice 18kg",null,null,38.296875,{"$f":"C6*D6","v":0}]
["Chien – Benaful bœuf 1,8kg",null,null,10.79,0]
["Chat  100% équilibré Eureka 8kg",null,null,9.99,0]
["Chat – Original Whiskas 1kg",null,null,19.59375,0]
["Chat – Litière longue durée Saular 3,20kg",null,null,7.296875,0]
["Chat - Dîner au poulet en canne Friskies 156gr",null,null,9.3567708333333339,0]
["Chat - Dîner au poulet en canne",null,null,1.2076822916666667,0]
[null,null,"Sous-total :",null,{"$f":"SUM(E5:E12)","v":0}]

{"sheet":"Quincaillerie","index":17,"n_rows":5,"n_cols":5,"rows_kept":5,"cut":false,"hidden":false,"merged":[]}
["La Calvette, Magasin Général de Landrienne, 819-727-9559"]
["Le prix inscrit est une indication que nous essayons de respecter, mais nous devons nous ajuster aux fluctuations au jour le jour."]
["Desription #1","Desription #2","Qté","Prix","Total"]
["Nourriture animaux"]
["Nom du produit","Format",null,31.6875,{"$f":"C5*D5","v":0}]

{"sheet":"Jouets","index":18,"n_rows":7,"n_cols":5,"rows_kept":7,"cut":false,"hidden":false,"merged":[]}
["La Calvette, Magasin Général de Landrienne, 819-727-9559"]
["Le prix inscrit est une indication que nous essayons de respecter, mais nous devons nous ajuster aux fluctuations au jour le jour."]
["Desription #1","Desription #2","Qté","Prix","Total"]
["Jouet"]
[null,null,null,null,{"$f":"C5*D5","v":0}]
[null,null,null,null,{"$f":"C6*D6","v":0}]
[null,null,null,null,0]